Workbook

Sheet 1. Instructions and Notations
B2: Gallons per Capita - v2.07
C11: This spreadsheet-based GPCD calculator is designed to help quantify and track water uses associated with water distribution systems. The spreadsheet contains several separate worksheets. Sheets can be accessed using the tabs towards the bottom of the screen, or by clicking the buttons on the left below. Descriptions of each sheet are also given below.
C13: It should be noted that all the recorded data should be from actual metered results and should not include any estimates.
E17: Value to be entered by user
C19: THE FOLLOWING KEY APPLIES THROUGHOUT: | E19: Dropdown box, pick from list | I19: Look for the following boxes that provide additional information
E21: Value calculated based on input data | J21: Instructions
E23: No longer available for input
C26: Please begin by providing the following information, then proceed through each sheet:
C28: NAME OF CITY OR UTILITY: | I28: New Mexico
C31: REPORTING YEARS: | D31: Enter the most recent reporting year: | H31: Data can be entered back to: | I31: =IF(E31="","",E31-6) -> 
C33: NAME OF CONTACT PERSON: | E33: E-MAIL: | J33: TELEPHONE:
K34: Ext.
C38: SELECT THE REPORTING UNITS FOR VOLUME DATA: | E38: Choose units... | K38: For unit converter click here:
D41: This sheet
D43: Census data and the portal to get the data from the Census website
D45: Single-Family residential gallons and population
D47: Multi-Family residential gallons and population
D49: Other data including Commercial, Industrial and Institutional [1.3] and Other metered [1.4] categories
D51: Data related to water reuse projects
D53: Total Production and Diverted Water
D55: The calculated data graphical review of most common performance indicators
D57: The calculated data graphical review of annual performance indicators
D59: The calculated data graphical review of monthly performance indicators
D61: Use this sheet to understand terms used in the audit process
D63: All parties reserve the right to validate the data recorded in this document. This does not bind the OSE or the Utility to the results. It is a tool used for planning purposes.
H65: If you have questions or comments regarding the software please contact us at: | I65: waternm@state.nm.us

Sheet 2. Census Data
A1: Census Information Data Table 2.1
D4: ='1. Instructions and Notations'!E31 -> 0 | E4: TO | F4: ='1. Instructions and Notations'!I31 ->  | G4: ='1. Instructions and Notations'!#REF! -> 
C5: OR | D5: Use the most recent census data
B9: DATA
B10: US Census Table | C10: Description | E10: INPUT
B11: DP-1 | C11: Profile of General Population and Housing Characteristics | D11: Census Year
B12: Subject
B13: Relationship | C13: In group quarters | D13: Total
B14: Housing Occupancy | C14: Total housing units | D14: Total
C15: Occupied housing units
C16: Vacant housing units
B17: Households by Type | C17: Average household size | D17: Total
C19: Formula: Household Size = Total Population / Total Number of Housing Units
C21: Vacancy Rate % | E21: =IF(OR(E16="",E14=""),"",E16/E14) -> 
A24: COMMENTS:

Sheet 3. Single-family
B2: DATA INPUT SHEET
F3: 3. SINGLE-FAMILY RESIDENTIAL (SFR) | AF3: =IF(E24="Total Connections",1,0) -> 0
AF4: 0 = Active Connections
C5: =IF(ISBLANK('1. Instructions and Notations'!$D$28),"",'1. Instructions and Notations'!$D$28) -> 
B6: Instructions
AF10: 1 = Total Connections
A11: MONTHLY DATA | Q11: ANNUAL DATA
B13: TABLE 3.1 | E13: =IF('1. Instructions and Notations'!$E$38="Choose units..."," First select reporting units for volume data on the instructions worksheet","") -> First select reporting units for volume data on the instructions worksheet | L13: ='1. Instructions and Notations'!E31 -> 0 | M13: TO | N13: ='1. Instructions and Notations'!I31 ->  | R13: TABLE 3.6 | T13: TABLE 3.7
B14: ="SFR BILLED WATER CONSUMPTION ("&'1. Instructions and Notations'!E38&")" -> SFR BILLED WATER CONSUMPTION (Choose units...) | R14: ANNUAL CONSUMPTION | T14: ANNUAL CALCULATION
B15: Year | C15: JAN | D15: FEB | E15: MAR | F15: APR | G15: MAY | H15: JUN | I15: JUL | J15: AUG | K15: SEP | L15: OCT | M15: NOV | N15: DEC
B16: =IF('1. Instructions and Notations'!E31=0,"",'1. Instructions and Notations'!E31) ->  | T16: =IF(W16=1,SUM(C16:N16),IF(R16=0,"N/A",R16)) -> N/A | W16: =IF(OR(C16=0,D16=0,E16=0,F16=0,G16=0,H16=0,I16=0,J16=0,K16=0,L16=0,M16=0,N16=0),0,1) -> 0
B17: =IF(B16="","",B16-1) ->  | T17: N/A | W17: 0
T18: N/A | W18: 0
T19: N/A | W19: 0
T20: N/A | W20: 0
T21: N/A | W21: 0 | AH21: CENSUS VACANCY RATE
T22: N/A | W22: 0
AH23: =IF(SUM('3. Single-family'!$R$38:$R$43)=0,'2. Census Data'!$E$16,('2. Census Data'!$E$16+('2. Census Data'!$E$16*((B38-'2. Census Data'!$E$11)*(AVERAGE('3. Single-family'!$R$38:$R$43)))))) -> 0
B24: TABLE 3.2 | E24: Choose Connections Type…. | G24: =IF(E24="Choose Connections Type….",UPPER(" Use Dropdown box to select the connections data you wish to enter")," You have chosen to enter "&E24&", enter the monthly values below,") -> USE DROPDOWN BOX TO SELECT THE CONNECTIONS DATA YOU WISH TO ENTER | R24: TABLE 3.8 | T24: TABLE 3.9 | W24: =IF(E24="Choose Connections Type….",1,IF(E24="Total Connections",2,3)) -> 1 | AH24: =IF(SUM('3. Single-family'!$R$38:$R$43)=0,'2. Census Data'!$E$16,('2. Census Data'!$E$16+('2. Census Data'!$E$16*((B39-'2. Census Data'!$E$11)*(AVERAGE('3. Single-family'!$R$38:$R$43)))))) -> 0
B25: NUMBER OF SFR CONNECTIONS (Monthly) | G25: =IF(E24="Choose Connections Type….",""," or enter annual values in table 3.8 Check message above Table 3.3 to see if additional data is required.") ->  | R25: AVG. ANNUAL CONNECTIONS | T25: AVG CONN. CALCULATION | AH25: =IF(SUM('3. Single-family'!$R$38:$R$43)=0,'2. Census Data'!$E$16,('2. Census Data'!$E$16+('2. Census Data'!$E$16*((B40-'2. Census Data'!$E$11)*(AVERAGE('3. Single-family'!$R$38:$R$43)))))) -> 0
B26: Year | C26: JAN | D26: FEB | E26: MAR | F26: APR | G26: MAY | H26: JUN | I26: JUL | J26: AUG | K26: SEP | L26: OCT | M26: NOV | N26: DEC | AH26: =IF(SUM('3. Single-family'!$R$38:$R$43)=0,'2. Census Data'!$E$16,('2. Census Data'!$E$16+('2. Census Data'!$E$16*((B41-'2. Census Data'!$E$11)*(AVERAGE('3. Single-family'!$R$38:$R$43)))))) -> 0
B27: =B16 ->  | T27: =IF($W$24=1,"N/A",IF(W27=1,AVERAGE(C27:N27),IF(R27=0,"N/A",R27))) -> N/A | W27: =IF(OR(C27=0,D27=0,E27=0,F27=0,G27=0,H27=0,I27=0,J27=0,K27=0,L27=0,M27=0,N27=0),0,1) -> 0 | AH27: =IF(SUM('3. Single-family'!$R$38:$R$43)=0,'2. Census Data'!$E$16,('2. Census Data'!$E$16+('2. Census Data'!$E$16*((B42-'2. Census Data'!$E$11)*(AVERAGE('3. Single-family'!$R$38:$R$43)))))) -> 0
T28: =IF($W$24=1,"N/A",IF(W28=1,AVERAGE(C28:N28),IF(R28=0,"N/A",R28))) -> N/A | W28: 0 | AH28: =IF(SUM('3. Single-family'!$R$38:$R$43)=0,'2. Census Data'!$E$16,('2. Census Data'!$E$16+('2. Census Data'!$E$16*((B43-'2. Census Data'!$E$11)*(AVERAGE('3. Single-family'!$R$38:$R$43)))))) -> 0
T29: N/A | W29: 0 | AH29: =IF(SUM('3. Single-family'!$R$38:$R$43)=0,'2. Census Data'!$E$16,('2. Census Data'!$E$16+('2. Census Data'!$E$16*((B44-'2. Census Data'!$E$11)*(AVERAGE('3. Single-family'!$R$38:$R$43)))))) -> 0
T30: N/A | W30: 0
T31: N/A | W31: 0
T32: N/A | W32: 0
T33: N/A | W33: 0
B35: TABLE 3.3 | F35: =IF(W24=2,"You have entered Total Connections in Table 3.2; enter the number of inactive (zero use) connections below",IF(W24=3,"You have entered Active Connections Only in Table 3.2; leave the cells below blank","")) ->  | R35: TABLE 3.10 | T35: TABLE 3.11
B36: INACTIVE (ZERO USE) SFR CONNECTIONS (Monthly) | F36: =IF(W24=2,"If values are not entered, an adjustment will be made based on vacancy rates reported in the Census data","") ->  | R36: CALCULATED GROWTH RATE | T36: No. VACANT SFR CONNECTIONS | AH36: CALCULATED GROWTH RATE
B37: Year | C37: JAN | D37: FEB | E37: MAR | F37: APR | G37: MAY | H37: JUN | I37: JUL | J37: AUG | K37: SEP | L37: OCT | M37: NOV | N37: DEC
B38: =B27 ->  | R38: =IF(OR(T28="N/A",T27="N/A"),"N/A",(T27-T28)/T28) -> N/A | T38: =IF(T27="N/A","N/A",IF($W$24=3,0,IF(W38=0,T27*'2. Census Data'!$E$21,AVERAGE(C38:N38)))) -> N/A | W38: =IF(OR(C38=0,D38=0,E38=0,F38=0,G38=0,H38=0,I38=0,J38=0,K38=0,L38=0,M38=0,N38=0),0,1) -> 0 | AH38: =R38 -> N/A
R39: N/A | T39: =IF(T28="N/A","N/A",IF($W$24=3,0,IF(W39=0,T28*'2. Census Data'!$E$21,AVERAGE(C39:N39)))) -> N/A | W39: 0 | AH39: N/A
R40: N/A | T40: =IF(T29="N/A","N/A",IF($W$24=3,0,IF(W40=0,T29*'2. Census Data'!$E$21,AVERAGE(C40:N40)))) -> N/A | W40: 0 | AH40: N/A
R41: N/A | T41: =IF(T30="N/A","N/A",IF($W$24=3,0,IF(W41=0,T30*'2. Census Data'!$E$21,AVERAGE(C41:N41)))) -> N/A | W41: 0 | AH41: N/A
R42: N/A | T42: =IF(T31="N/A","N/A",IF($W$24=3,0,IF(W42=0,T31*'2. Census Data'!$E$21,AVERAGE(C42:N42)))) -> N/A | W42: 0 | AH42: N/A
R43: N/A | T43: =IF(T32="N/A","N/A",IF($W$24=3,0,IF(W43=0,T32*'2. Census Data'!$E$21,AVERAGE(C43:N43)))) -> N/A | W43: 0 | AH43: N/A
R44: =IF(SUM(R38:R43)=0,"Are you sure growth is zero?","") -> Are you sure growth is zero? | T44: =IF(T33="N/A","N/A",IF($W$24=3,0,IF(W44=0,T33*'2. Census Data'!$E$21,AVERAGE(C44:N44)))) -> N/A | W44: 0
B46: TABLE 3.4 | F46: Formula = (No. of Connections - No. of Zero Use Accounts) * Ave. Household Size | R46: TABLE 3.12 | T46: TABLE 3.13
B47: SFR POPULATION (Monthly) | R47: SIZE OF HOUSEHOLD | T47: SFR POPULATION
B48: Year | C48: JAN | D48: FEB | E48: MAR | F48: APR | G48: MAY | H48: JUN | I48: JUL | J48: AUG | K48: SEP | L48: OCT | M48: NOV | N48: DEC
B49: =B16 ->  | C49: =IF(OR(C16=0,C27=0),"No Data",(C27-IF($W$24=2,IF($W38=1,C38,$T38),0))*$R49) -> No Data | D49: =IF(OR(D16=0,D27=0),"No Data",(D27-IF($W$24=2,IF($W38=1,D38,$T38),0))*$R49) -> No Data | E49: =IF(OR(E16=0,E27=0),"No Data",(E27-IF($W$24=2,IF($W38=1,E38,$T38),0))*$R49) -> No Data | F49: No Data | G49: No Data | H49: No Data | I49: No Data | J49: No Data | K49: No Data | L49: No Data | M49: No Data | N49: No Data | R49: ='2. Census Data'!E17 -> 0 | T49: =IF(OR(C49="No Data",D49="No Data",E49="No Data",F49="No Data",G49="No Data",H49="No Data",I49="No Data",J49="No Data",K49="No Data",L49="No Data",M49="No Data",N49="No Data"),IF(T27="N/A","N/A",(T27-T38)*R49),AVERAGE(C49:N49)) -> N/A
C50: =IF(OR(C17=0,C28=0),"No Data",(C28-IF($W$24=2,IF($W39=1,C39,$T39),0))*$R50) -> No Data | D50: No Data | E50: =IF(OR(E17=0,E28=0),"No Data",(E28-IF($W$24=2,IF($W39=1,E39,$T39),0))*$R50) -> No Data | F50: No Data | G50: No Data | H50: No Data | I50: No Data | J50: No Data | K50: No Data | L50: No Data | M50: No Data | N50: No Data | R50: =$R$49 -> 0 | T50: N/A
C51: No Data | D51: No Data | E51: =IF(OR(E18=0,E29=0),"No Data",(E29-IF($W$24=2,IF($W40=1,E40,$T40),0))*$R51) -> No Data | F51: No Data | G51: No Data | H51: No Data | I51: No Data | J51: No Data | K51: No Data | L51: No Data | M51: No Data | N51: No Data | R51: 0 | T51: N/A
C52: No Data | D52: No Data | E52: =IF(OR(E19=0,E30=0),"No Data",(E30-IF($W$24=2,IF($W41=1,E41,$T41),0))*$R52) -> No Data | F52: No Data | G52: No Data | H52: No Data | I52: No Data | J52: No Data | K52: No Data | L52: No Data | M52: No Data | N52: No Data | R52: 0 | T52: N/A
C53: No Data | D53: No Data | E53: =IF(OR(E20=0,E31=0),"No Data",(E31-IF($W$24=2,IF($W42=1,E42,$T42),0))*$R53) -> No Data | F53: No Data | G53: No Data | H53: No Data | I53: No Data | J53: No Data | K53: No Data | L53: No Data | M53: No Data | N53: No Data | R53: 0 | T53: N/A
C54: No Data | D54: No Data | E54: =IF(OR(E21=0,E32=0),"No Data",(E32-IF($W$24=2,IF($W43=1,E43,$T43),0))*$R54) -> No Data | F54: No Data | G54: No Data | H54: No Data | I54: No Data | J54: No Data | K54: No Data | L54: No Data | M54: No Data | N54: No Data | R54: 0 | T54: N/A
C55: No Data | D55: No Data | E55: =IF(OR(E22=0,E33=0),"No Data",(E33-IF($W$24=2,IF($W44=1,E44,$T44),0))*$R55) -> No Data | F55: No Data | G55: No Data | H55: No Data | I55: No Data | J55: No Data | K55: No Data | L55: No Data | M55: No Data | N55: No Data | R55: 0 | T55: N/A
B59: TABLE 3.5 | F59: Formula = Billed Water Consumption (SFR only) / Calculated Population (SFR only) | T59: TABLE 3.14
B60: SFR GPCD CALCULATION (Monthly) | S60: ANNUAL SFR GPCD
B61: Year | C61: JAN | D61: FEB | E61: MAR | F61: APR | G61: MAY | H61: JUN | I61: JUL | J61: AUG | K61: SEP | L61: OCT | M61: NOV | N61: DEC | W61: Consump | X61: Conns
B62: =B49 ->  | C62: =IF(OR(C16=0,C27=0),"No Data",(IF('1. Instructions and Notations'!$E$38="Cubic Feet",C16*7.48051945,C16)/31)/C49) -> No Data | D62: =IF(OR(D16=0,D27=0),"No Data",(IF('1. Instructions and Notations'!$E$38="Cubic Feet",D16*7.48051945,D16)/28)/D49) -> No Data | E62: =IF(OR(E16=0,E27=0),"No Data",(IF('1. Instructions and Notations'!$E$38="Cubic Feet",E16*7.48051945,E16)/31)/E49) -> No Data | F62: =IF(OR(F16=0,F27=0),"No Data",(IF('1. Instructions and Notations'!$E$38="Cubic Feet",F16*7.48051945,F16)/30)/F49) -> No Data | G62: =IF(OR(G16=0,G27=0),"No Data",(IF('1. Instructions and Notations'!$E$38="Cubic Feet",G16*7.48051945,G16)/31)/G49) -> No Data | H62: =IF(OR(H16=0,H27=0),"No Data",(IF('1. Instructions and Notations'!$E$38="Cubic Feet",H16*7.48051945,H16)/30)/H49) -> No Data | I62: =IF(OR(I16=0,I27=0),"No Data",(IF('1. Instructions and Notations'!$E$38="Cubic Feet",I16*7.48051945,I16)/31)/I49) -> No Data | J62: =IF(OR(J16=0,J27=0),"No Data",(IF('1. Instructions and Notations'!$E$38="Cubic Feet",J16*7.48051945,J16)/31)/J49) -> No Data | K62: =IF(OR(K16=0,K27=0),"No Data",(IF('1. Instructions and Notations'!$E$38="Cubic Feet",K16*7.48051945,K16)/30)/K49) -> No Data | L62: =IF(OR(L16=0,L27=0),"No Data",(IF('1. Instructions and Notations'!$E$38="Cubic Feet",L16*7.48051945,L16)/31)/L49) -> No Data | M62: =IF(OR(M16=0,M27=0),"No Data",(IF('1. Instructions and Notations'!$E$38="Cubic Feet",M16*7.48051945,M16)/30)/M49) -> No Data | N62: =IF(OR(N16=0,N27=0),"No Data",(IF('1. Instructions and Notations'!$E$38="Cubic Feet",N16*7.48051945,N16)/31)/N49) -> No Data | R62: =IF(SUM(W62:X62)=1,IF(W62=1,"Add Connection Data","Add Consumption Data"),"") ->  | S62: =IF(OR(T16="N/A",T49="N/A"),"N/A",IF('1. Instructions and Notations'!$E$38="Cubic Feet",T16*7.48051945,T16)/(365*T49)) -> N/A | W62: =IF(OR(W16=1,R16>0),1,0) -> 0 | X62: =IF(OR(W27=1,AND(T27>0,T27<>"N/A")),1,0) -> 0
C63: =IF(OR(C17=0,C28=0),"No Data",(IF('1. Instructions and Notations'!$E$38="Cubic Feet",C17*7.48051945,C17)/31)/C50) -> No Data | D63: =IF(OR(D17=0,D28=0),"No Data",(IF('1. Instructions and Notations'!$E$38="Cubic Feet",D17*7.48051945,D17)/28)/D50) -> No Data | E63: =IF(OR(E17=0,E28=0),"No Data",(IF('1. Instructions and Notations'!$E$38="Cubic Feet",E17*7.48051945,E17)/31)/E50) -> No Data | F63: =IF(OR(F17=0,F28=0),"No Data",(IF('1. Instructions and Notations'!$E$38="Cubic Feet",F17*7.48051945,F17)/30)/F50) -> No Data | G63: =IF(OR(G17=0,G28=0),"No Data",(IF('1. Instructions and Notations'!$E$38="Cubic Feet",G17*7.48051945,G17)/31)/G50) -> No Data | H63: =IF(OR(H17=0,H28=0),"No Data",(IF('1. Instructions and Notations'!$E$38="Cubic Feet",H17*7.48051945,H17)/30)/H50) -> No Data | I63: =IF(OR(I17=0,I28=0),"No Data",(IF('1. Instructions and Notations'!$E$38="Cubic Feet",I17*7.48051945,I17)/31)/I50) -> No Data | J63: =IF(OR(J17=0,J28=0),"No Data",(IF('1. Instructions and Notations'!$E$38="Cubic Feet",J17*7.48051945,J17)/31)/J50) -> No Data | K63: =IF(OR(K17=0,K28=0),"No Data",(IF('1. Instructions and Notations'!$E$38="Cubic Feet",K17*7.48051945,K17)/30)/K50) -> No Data | L63: =IF(OR(L17=0,L28=0),"No Data",(IF('1. Instructions and Notations'!$E$38="Cubic Feet",L17*7.48051945,L17)/31)/L50) -> No Data | M63: =IF(OR(M17=0,M28=0),"No Data",(IF('1. Instructions and Notations'!$E$38="Cubic Feet",M17*7.48051945,M17)/30)/M50) -> No Data | N63: =IF(OR(N17=0,N28=0),"No Data",(IF('1. Instructions and Notations'!$E$38="Cubic Feet",N17*7.48051945,N17)/31)/N50) -> No Data | S63: =IF(OR(T17="N/A",T50="N/A"),"N/A",IF('1. Instructions and Notations'!$E$38="Cubic Feet",T17*7.48051945,T17)/(365*T50)) -> N/A | W63: 0 | X63: 0
C64: =IF(OR(C18=0,C29=0),"No Data",(IF('1. Instructions and Notations'!$E$38="Cubic Feet",C18*7.48051945,C18)/31)/C51) -> No Data | D64: =IF(OR(D18=0,D29=0),"No Data",(IF('1. Instructions and Notations'!$E$38="Cubic Feet",D18*7.48051945,D18)/28)/D51) -> No Data | E64: =IF(OR(E18=0,E29=0),"No Data",(IF('1. Instructions and Notations'!$E$38="Cubic Feet",E18*7.48051945,E18)/31)/E51) -> No Data | F64: =IF(OR(F18=0,F29=0),"No Data",(IF('1. Instructions and Notations'!$E$38="Cubic Feet",F18*7.48051945,F18)/30)/F51) -> No Data | G64: =IF(OR(G18=0,G29=0),"No Data",(IF('1. Instructions and Notations'!$E$38="Cubic Feet",G18*7.48051945,G18)/31)/G51) -> No Data | H64: =IF(OR(H18=0,H29=0),"No Data",(IF('1. Instructions and Notations'!$E$38="Cubic Feet",H18*7.48051945,H18)/30)/H51) -> No Data | I64: =IF(OR(I18=0,I29=0),"No Data",(IF('1. Instructions and Notations'!$E$38="Cubic Feet",I18*7.48051945,I18)/31)/I51) -> No Data | J64: =IF(OR(J18=0,J29=0),"No Data",(IF('1. Instructions and Notations'!$E$38="Cubic Feet",J18*7.48051945,J18)/31)/J51) -> No Data | K64: =IF(OR(K18=0,K29=0),"No Data",(IF('1. Instructions and Notations'!$E$38="Cubic Feet",K18*7.48051945,K18)/30)/K51) -> No Data | L64: =IF(OR(L18=0,L29=0),"No Data",(IF('1. Instructions and Notations'!$E$38="Cubic Feet",L18*7.48051945,L18)/31)/L51) -> No Data | M64: =IF(OR(M18=0,M29=0),"No Data",(IF('1. Instructions and Notations'!$E$38="Cubic Feet",M18*7.48051945,M18)/30)/M51) -> No Data | N64: =IF(OR(N18=0,N29=0),"No Data",(IF('1. Instructions and Notations'!$E$38="Cubic Feet",N18*7.48051945,N18)/31)/N51) -> No Data | S64: =IF(OR(T18="N/A",T51="N/A"),"N/A",IF('1. Instructions and Notations'!$E$38="Cubic Feet",T18*7.48051945,T18)/(365*T51)) -> N/A | W64: 0 | X64: 0
C65: =IF(OR(C19=0,C30=0),"No Data",(IF('1. Instructions and Notations'!$E$38="Cubic Feet",C19*7.48051945,C19)/31)/C52) -> No Data | D65: =IF(OR(D19=0,D30=0),"No Data",(IF('1. Instructions and Notations'!$E$38="Cubic Feet",D19*7.48051945,D19)/28)/D52) -> No Data | E65: =IF(OR(E19=0,E30=0),"No Data",(IF('1. Instructions and Notations'!$E$38="Cubic Feet",E19*7.48051945,E19)/31)/E52) -> No Data | F65: =IF(OR(F19=0,F30=0),"No Data",(IF('1. Instructions and Notations'!$E$38="Cubic Feet",F19*7.48051945,F19)/30)/F52) -> No Data | G65: =IF(OR(G19=0,G30=0),"No Data",(IF('1. Instructions and Notations'!$E$38="Cubic Feet",G19*7.48051945,G19)/31)/G52) -> No Data | H65: =IF(OR(H19=0,H30=0),"No Data",(IF('1. Instructions and Notations'!$E$38="Cubic Feet",H19*7.48051945,H19)/30)/H52) -> No Data | I65: =IF(OR(I19=0,I30=0),"No Data",(IF('1. Instructions and Notations'!$E$38="Cubic Feet",I19*7.48051945,I19)/31)/I52) -> No Data | J65: =IF(OR(J19=0,J30=0),"No Data",(IF('1. Instructions and Notations'!$E$38="Cubic Feet",J19*7.48051945,J19)/31)/J52) -> No Data | K65: =IF(OR(K19=0,K30=0),"No Data",(IF('1. Instructions and Notations'!$E$38="Cubic Feet",K19*7.48051945,K19)/30)/K52) -> No Data | L65: =IF(OR(L19=0,L30=0),"No Data",(IF('1. Instructions and Notations'!$E$38="Cubic Feet",L19*7.48051945,L19)/31)/L52) -> No Data | M65: =IF(OR(M19=0,M30=0),"No Data",(IF('1. Instructions and Notations'!$E$38="Cubic Feet",M19*7.48051945,M19)/30)/M52) -> No Data | N65: =IF(OR(N19=0,N30=0),"No Data",(IF('1. Instructions and Notations'!$E$38="Cubic Feet",N19*7.48051945,N19)/31)/N52) -> No Data | S65: =IF(OR(T19="N/A",T52="N/A"),"N/A",IF('1. Instructions and Notations'!$E$38="Cubic Feet",T19*7.48051945,T19)/(365*T52)) -> N/A | W65: 0 | X65: 0
C66: =IF(OR(C20=0,C31=0),"No Data",(IF('1. Instructions and Notations'!$E$38="Cubic Feet",C20*7.48051945,C20)/31)/C53) -> No Data | D66: =IF(OR(D20=0,D31=0),"No Data",(IF('1. Instructions and Notations'!$E$38="Cubic Feet",D20*7.48051945,D20)/28)/D53) -> No Data | E66: =IF(OR(E20=0,E31=0),"No Data",(IF('1. Instructions and Notations'!$E$38="Cubic Feet",E20*7.48051945,E20)/31)/E53) -> No Data | F66: =IF(OR(F20=0,F31=0),"No Data",(IF('1. Instructions and Notations'!$E$38="Cubic Feet",F20*7.48051945,F20)/30)/F53) -> No Data | G66: =IF(OR(G20=0,G31=0),"No Data",(IF('1. Instructions and Notations'!$E$38="Cubic Feet",G20*7.48051945,G20)/31)/G53) -> No Data | H66: =IF(OR(H20=0,H31=0),"No Data",(IF('1. Instructions and Notations'!$E$38="Cubic Feet",H20*7.48051945,H20)/30)/H53) -> No Data | I66: =IF(OR(I20=0,I31=0),"No Data",(IF('1. Instructions and Notations'!$E$38="Cubic Feet",I20*7.48051945,I20)/31)/I53) -> No Data | J66: =IF(OR(J20=0,J31=0),"No Data",(IF('1. Instructions and Notations'!$E$38="Cubic Feet",J20*7.48051945,J20)/31)/J53) -> No Data | K66: =IF(OR(K20=0,K31=0),"No Data",(IF('1. Instructions and Notations'!$E$38="Cubic Feet",K20*7.48051945,K20)/30)/K53) -> No Data | L66: =IF(OR(L20=0,L31=0),"No Data",(IF('1. Instructions and Notations'!$E$38="Cubic Feet",L20*7.48051945,L20)/31)/L53) -> No Data | M66: =IF(OR(M20=0,M31=0),"No Data",(IF('1. Instructions and Notations'!$E$38="Cubic Feet",M20*7.48051945,M20)/30)/M53) -> No Data | N66: =IF(OR(N20=0,N31=0),"No Data",(IF('1. Instructions and Notations'!$E$38="Cubic Feet",N20*7.48051945,N20)/31)/N53) -> No Data | S66: =IF(OR(T20="N/A",T53="N/A"),"N/A",IF('1. Instructions and Notations'!$E$38="Cubic Feet",T20*7.48051945,T20)/(365*T53)) -> N/A | W66: 0 | X66: 0
C67: =IF(OR(C21=0,C32=0),"No Data",(IF('1. Instructions and Notations'!$E$38="Cubic Feet",C21*7.48051945,C21)/31)/C54) -> No Data | D67: =IF(OR(D21=0,D32=0),"No Data",(IF('1. Instructions and Notations'!$E$38="Cubic Feet",D21*7.48051945,D21)/28)/D54) -> No Data | E67: =IF(OR(E21=0,E32=0),"No Data",(IF('1. Instructions and Notations'!$E$38="Cubic Feet",E21*7.48051945,E21)/31)/E54) -> No Data | F67: =IF(OR(F21=0,F32=0),"No Data",(IF('1. Instructions and Notations'!$E$38="Cubic Feet",F21*7.48051945,F21)/30)/F54) -> No Data | G67: =IF(OR(G21=0,G32=0),"No Data",(IF('1. Instructions and Notations'!$E$38="Cubic Feet",G21*7.48051945,G21)/31)/G54) -> No Data | H67: =IF(OR(H21=0,H32=0),"No Data",(IF('1. Instructions and Notations'!$E$38="Cubic Feet",H21*7.48051945,H21)/30)/H54) -> No Data | I67: =IF(OR(I21=0,I32=0),"No Data",(IF('1. Instructions and Notations'!$E$38="Cubic Feet",I21*7.48051945,I21)/31)/I54) -> No Data | J67: =IF(OR(J21=0,J32=0),"No Data",(IF('1. Instructions and Notations'!$E$38="Cubic Feet",J21*7.48051945,J21)/31)/J54) -> No Data | K67: =IF(OR(K21=0,K32=0),"No Data",(IF('1. Instructions and Notations'!$E$38="Cubic Feet",K21*7.48051945,K21)/30)/K54) -> No Data | L67: =IF(OR(L21=0,L32=0),"No Data",(IF('1. Instructions and Notations'!$E$38="Cubic Feet",L21*7.48051945,L21)/31)/L54) -> No Data | M67: =IF(OR(M21=0,M32=0),"No Data",(IF('1. Instructions and Notations'!$E$38="Cubic Feet",M21*7.48051945,M21)/30)/M54) -> No Data | N67: =IF(OR(N21=0,N32=0),"No Data",(IF('1. Instructions and Notations'!$E$38="Cubic Feet",N21*7.48051945,N21)/31)/N54) -> No Data | S67: =IF(OR(T21="N/A",T54="N/A"),"N/A",IF('1. Instructions and Notations'!$E$38="Cubic Feet",T21*7.48051945,T21)/(365*T54)) -> N/A | W67: 0 | X67: 0
C68: =IF(OR(C22=0,C33=0),"No Data",(IF('1. Instructions and Notations'!$E$38="Cubic Feet",C22*7.48051945,C22)/31)/C55) -> No Data | D68: =IF(OR(D22=0,D33=0),"No Data",(IF('1. Instructions and Notations'!$E$38="Cubic Feet",D22*7.48051945,D22)/28)/D55) -> No Data | E68: =IF(OR(E22=0,E33=0),"No Data",(IF('1. Instructions and Notations'!$E$38="Cubic Feet",E22*7.48051945,E22)/31)/E55) -> No Data | F68: =IF(OR(F22=0,F33=0),"No Data",(IF('1. Instructions and Notations'!$E$38="Cubic Feet",F22*7.48051945,F22)/30)/F55) -> No Data | G68: =IF(OR(G22=0,G33=0),"No Data",(IF('1. Instructions and Notations'!$E$38="Cubic Feet",G22*7.48051945,G22)/31)/G55) -> No Data | H68: =IF(OR(H22=0,H33=0),"No Data",(IF('1. Instructions and Notations'!$E$38="Cubic Feet",H22*7.48051945,H22)/30)/H55) -> No Data | I68: =IF(OR(I22=0,I33=0),"No Data",(IF('1. Instructions and Notations'!$E$38="Cubic Feet",I22*7.48051945,I22)/31)/I55) -> No Data | J68: =IF(OR(J22=0,J33=0),"No Data",(IF('1. Instructions and Notations'!$E$38="Cubic Feet",J22*7.48051945,J22)/31)/J55) -> No Data | K68: =IF(OR(K22=0,K33=0),"No Data",(IF('1. Instructions and Notations'!$E$38="Cubic Feet",K22*7.48051945,K22)/30)/K55) -> No Data | L68: =IF(OR(L22=0,L33=0),"No Data",(IF('1. Instructions and Notations'!$E$38="Cubic Feet",L22*7.48051945,L22)/31)/L55) -> No Data | M68: =IF(OR(M22=0,M33=0),"No Data",(IF('1. Instructions and Notations'!$E$38="Cubic Feet",M22*7.48051945,M22)/30)/M55) -> No Data | N68: =IF(OR(N22=0,N33=0),"No Data",(IF('1. Instructions and Notations'!$E$38="Cubic Feet",N22*7.48051945,N22)/31)/N55) -> No Data | S68: =IF(OR(T22="N/A",T55="N/A"),"N/A",IF('1. Instructions and Notations'!$E$38="Cubic Feet",T22*7.48051945,T22)/(365*T55)) -> N/A | W68: 0 | X68: =IF(OR(W33=1,AND(T33>0,T33<>"N/A")),1,0) -> 0
B70: COMMENTS:
B78: RAINFALL (inches)
B80: Year | C80: JAN | D80: FEB | E80: MAR | F80: APR | G80: MAY | H80: JUN | I80: JUL | J80: AUG | K80: SEP | L80: OCT | M80: NOV | N80: DEC
B81: =B62 -> 

Sheet 4. Multi-family
B2: DATA INPUT SHEET | F2: 4. MULTI-FAMILY RESIDENTIAL (MFR)
C4: =IF(ISBLANK('1. Instructions and Notations'!$D$28),"",'1. Instructions and Notations'!$D$28) -> 
B6: Instructions
A7: MONTHLY DATA | Q7: ANNUAL DATA
L8: ='1. Instructions and Notations'!E31 -> 0 | M8: TO | N8: ='1. Instructions and Notations'!I31 -> 
B9: TABLE 4.1 | E9: =IF('1. Instructions and Notations'!$E$38="Choose units..."," First select reporting units for volume data on the instructions worksheet","") -> First select reporting units for volume data on the instructions worksheet | R9: TABLE 4.5 | T9: TABLE 4.6
B10: ="MFR BILLED WATER CONSUMPTION (Monthly) ("&'1. Instructions and Notations'!E38&")" -> MFR BILLED WATER CONSUMPTION (Monthly) (Choose units...) | R10: ANNUAL CONSUMPTION | T10: ANNUAL CALCULATION
B11: Year | C11: JAN | D11: FEB | E11: MAR | F11: APR | G11: MAY | H11: JUN | I11: JUL | J11: AUG | K11: SEP | L11: OCT | M11: NOV | N11: DEC
B12: ='3. Single-family'!B16 ->  | T12: =IF(W12=1,SUM(C12:N12),IF(R12=0,"N/A",R12)) -> N/A | W12: =IF(OR(C12=0,D12=0,E12=0,F12=0,G12=0,H12=0,I12=0,J12=0,K12=0,L12=0,M12=0,N12=0),0,1) -> 0
B13: ='3. Single-family'!B17 ->  | T13: N/A | W13: 0
B14: ='3. Single-family'!B18 ->  | T14: N/A | W14: 0
B15: ='3. Single-family'!B19 ->  | T15: N/A | W15: 0
B16: ='3. Single-family'!B20 ->  | T16: N/A | W16: 0
B17: ='3. Single-family'!B21 ->  | T17: N/A | W17: 0
B18: ='3. Single-family'!B22 ->  | T18: N/A | W18: 0
B20: TABLE 4.2 | F20: If only Current Number of Units is Known, put this number in Table 4.7 | R20: TABLE 4.7 | T20: TABLE 4.8
B21: NUMBER OF MFR UNITS (Monthly) | R21: No. CURRENT UNITS | T21: ANNUAL UNIT CALCULATION
B22: Year | C22: JAN | D22: FEB | E22: MAR | F22: APR | G22: MAY | H22: JUN | I22: JUL | J22: AUG | K22: SEP | L22: OCT | M22: NOV | N22: DEC
B23: =B12 ->  | T23: =IF(W23=1,AVERAGE(C23:N23),IF(R23=0,"N/A",R23)) -> N/A | W23: =IF(OR(C23=0,D23=0,E23=0,F23=0,G23=0,H23=0,I23=0,J23=0,K23=0,L23=0,M23=0,N23=0),0,1) -> 0
T24: =IF(W24=1,AVERAGE(C24:N24),IF(R24=0,IF('3. Single-family'!AH38="N/A","N/A",IF($T$23="N/A","N/A",T23/(1+'3. Single-family'!AH38))),R24)) -> N/A | U24: =IF(AND(W24=0,R24=0,'3. Single-family'!AH38<>"N/A"),"X","") ->  | W24: 0
T25: =IF(W25=1,AVERAGE(C25:N25),IF(R25=0,IF('3. Single-family'!AH39="N/A","N/A",IF($T$23="N/A","N/A",T24/(1+'3. Single-family'!AH39))),R25)) -> N/A | U25: =IF(AND(W25=0,R25=0,'3. Single-family'!AH39<>"N/A"),"X","") ->  | W25: 0
T26: =IF(W26=1,AVERAGE(C26:N26),IF(R26=0,IF('3. Single-family'!AH40="N/A","N/A",IF($T$23="N/A","N/A",T25/(1+'3. Single-family'!AH40))),R26)) -> N/A | U26: =IF(AND(W26=0,R26=0,'3. Single-family'!AH40<>"N/A"),"X","") ->  | W26: 0
T27: =IF(W27=1,AVERAGE(C27:N27),IF(R27=0,IF('3. Single-family'!AH41="N/A","N/A",IF($T$23="N/A","N/A",T26/(1+'3. Single-family'!AH41))),R27)) -> N/A | U27: =IF(AND(W27=0,R27=0,'3. Single-family'!AH41<>"N/A"),"X","") ->  | W27: 0
T28: =IF(W28=1,AVERAGE(C28:N28),IF(R28=0,IF('3. Single-family'!AH42="N/A","N/A",IF($T$23="N/A","N/A",T27/(1+'3. Single-family'!AH42))),R28)) -> N/A | U28: =IF(AND(W28=0,R28=0,'3. Single-family'!AH42<>"N/A"),"X","") ->  | W28: 0
T29: =IF(W29=1,AVERAGE(C29:N29),IF(R29=0,IF('3. Single-family'!AH43="N/A","N/A",IF($T$23="N/A","N/A",T28/(1+'3. Single-family'!AH43))),R29)) -> N/A | U29: =IF(AND(W29=0,R29=0,'3. Single-family'!AH43<>"N/A"),"X","") ->  | W29: 0
U30: =IF(COUNTIF(U24:U29,"X")>0,"X = calculated from Single-family growth-rate data ","") -> 
B32: TABLE 4.3 | F32: Formula = (Number of Units - Vacant MFR Connections) * Ave. Household Size | R32: TABLE 4.9 | T32: TABLE 4.10
B33: MFR POPULATION (Monthly) | R33: MFR POPULATION | T33: VACANT MFR CONNECTIONS
B34: Year | C34: JAN | D34: FEB | E34: MAR | F34: APR | G34: MAY | H34: JUN | I34: JUL | J34: AUG | K34: SEP | L34: OCT | M34: NOV | N34: DEC
B35: =B12 ->  | C35: =IF(C23=0,"No Data",(C23-T35)*'2. Census Data'!$E$17) -> No Data | D35: =IF(D23=0,"No Data",(D23-T35)*'2. Census Data'!$E$17) -> No Data | E35: =IF(E23=0,"No Data",(E23-T35)*'2. Census Data'!$E$17) -> No Data | F35: =IF(F23=0,"No Data",(F23-T35)*'2. Census Data'!$E$17) -> No Data | G35: =IF(G23=0,"No Data",(G23-T35)*'2. Census Data'!$E$17) -> No Data | H35: =IF(H23=0,"No Data",(H23-T35)*'2. Census Data'!$E$17) -> No Data | I35: =IF(I23=0,"No Data",(I23-T35)*'2. Census Data'!$E$17) -> No Data | J35: =IF(J23=0,"No Data",(J23-T35)*'2. Census Data'!$E$17) -> No Data | K35: =IF(K23=0,"No Data",(K23-T35)*'2. Census Data'!$E$17) -> No Data | L35: =IF(L23=0,"No Data",(L23-T35)*'2. Census Data'!$E$17) -> No Data | M35: =IF(M23=0,"No Data",(M23-T35)*'2. Census Data'!$E$17) -> No Data | N35: =IF(N23=0,"No Data",(N23-T35)*'2. Census Data'!$E$17) -> No Data | R35: =IF(OR(C35="No Data",D35="No Data",E35="No Data",F35="No Data",G35="No Data",H35="No Data",I35="No Data",J35="No Data",K35="No Data",L35="No Data",M35="No Data",N35="No Data"),IF(T23="N/A","N/A",(T23-T35)*'2. Census Data'!E17),AVERAGE(C35:N35)) -> N/A | T35: =IF(OR(T23="",T23="N/A",'2. Census Data'!$E$21=""),"N/A",T23*'2. Census Data'!$E$21) -> N/A
C36: =IF(C24=0,"No Data",(C24-T36)*'2. Census Data'!$E$17) -> No Data | D36: =IF(D24=0,"No Data",(D24-T36)*'2. Census Data'!$E$17) -> No Data | E36: =IF(E24=0,"No Data",(E24-T36)*'2. Census Data'!$E$17) -> No Data | F36: =IF(F24=0,"No Data",(F24-T36)*'2. Census Data'!$E$17) -> No Data | G36: =IF(G24=0,"No Data",(G24-T36)*'2. Census Data'!$E$17) -> No Data | H36: =IF(H24=0,"No Data",(H24-T36)*'2. Census Data'!$E$17) -> No Data | I36: =IF(I24=0,"No Data",(I24-T36)*'2. Census Data'!$E$17) -> No Data | J36: =IF(J24=0,"No Data",(J24-T36)*'2. Census Data'!$E$17) -> No Data | K36: =IF(K24=0,"No Data",(K24-T36)*'2. Census Data'!$E$17) -> No Data | L36: =IF(L24=0,"No Data",(L24-T36)*'2. Census Data'!$E$17) -> No Data | M36: =IF(M24=0,"No Data",(M24-T36)*'2. Census Data'!$E$17) -> No Data | N36: =IF(N24=0,"No Data",(N24-T36)*'2. Census Data'!$E$17) -> No Data | R36: =IF(OR(C36="No Data",D36="No Data",E36="No Data",F36="No Data",G36="No Data",H36="No Data",I36="No Data",J36="No Data",K36="No Data",L36="No Data",M36="No Data",N36="No Data"),IF(T24="N/A","N/A",(T24-T36)*'2. Census Data'!E17),AVERAGE(C36:N36)) -> N/A | T36: =IF(OR(T24="",T24="N/A",'2. Census Data'!$E$21=""),"N/A",T24*'2. Census Data'!$E$21) -> N/A
C37: =IF(C25=0,"No Data",(C25-T37)*'2. Census Data'!$E$17) -> No Data | D37: =IF(D25=0,"No Data",(D25-T37)*'2. Census Data'!$E$17) -> No Data | E37: =IF(E25=0,"No Data",(E25-T37)*'2. Census Data'!$E$17) -> No Data | F37: =IF(F25=0,"No Data",(F25-T37)*'2. Census Data'!$E$17) -> No Data | G37: =IF(G25=0,"No Data",(G25-T37)*'2. Census Data'!$E$17) -> No Data | H37: =IF(H25=0,"No Data",(H25-T37)*'2. Census Data'!$E$17) -> No Data | I37: =IF(I25=0,"No Data",(I25-T37)*'2. Census Data'!$E$17) -> No Data | J37: =IF(J25=0,"No Data",(J25-T37)*'2. Census Data'!$E$17) -> No Data | K37: =IF(K25=0,"No Data",(K25-T37)*'2. Census Data'!$E$17) -> No Data | L37: =IF(L25=0,"No Data",(L25-T37)*'2. Census Data'!$E$17) -> No Data | M37: =IF(M25=0,"No Data",(M25-T37)*'2. Census Data'!$E$17) -> No Data | N37: =IF(N25=0,"No Data",(N25-T37)*'2. Census Data'!$E$17) -> No Data | R37: =IF(OR(C37="No Data",D37="No Data",E37="No Data",F37="No Data",G37="No Data",H37="No Data",I37="No Data",J37="No Data",K37="No Data",L37="No Data",M37="No Data",N37="No Data"),IF(T25="N/A","N/A",(T25-T37)*'2. Census Data'!E17),AVERAGE(C37:N37)) -> N/A | T37: =IF(OR(T25="",T25="N/A",'2. Census Data'!$E$21=""),"N/A",T25*'2. Census Data'!$E$21) -> N/A
C38: =IF(C26=0,"No Data",(C26-T38)*'2. Census Data'!$E$17) -> No Data | D38: =IF(D26=0,"No Data",(D26-T38)*'2. Census Data'!$E$17) -> No Data | E38: =IF(E26=0,"No Data",(E26-T38)*'2. Census Data'!$E$17) -> No Data | F38: =IF(F26=0,"No Data",(F26-T38)*'2. Census Data'!$E$17) -> No Data | G38: =IF(G26=0,"No Data",(G26-T38)*'2. Census Data'!$E$17) -> No Data | H38: =IF(H26=0,"No Data",(H26-T38)*'2. Census Data'!$E$17) -> No Data | I38: =IF(I26=0,"No Data",(I26-T38)*'2. Census Data'!$E$17) -> No Data | J38: =IF(J26=0,"No Data",(J26-T38)*'2. Census Data'!$E$17) -> No Data | K38: =IF(K26=0,"No Data",(K26-T38)*'2. Census Data'!$E$17) -> No Data | L38: =IF(L26=0,"No Data",(L26-T38)*'2. Census Data'!$E$17) -> No Data | M38: =IF(M26=0,"No Data",(M26-T38)*'2. Census Data'!$E$17) -> No Data | N38: =IF(N26=0,"No Data",(N26-T38)*'2. Census Data'!$E$17) -> No Data | R38: =IF(OR(C38="No Data",D38="No Data",E38="No Data",F38="No Data",G38="No Data",H38="No Data",I38="No Data",J38="No Data",K38="No Data",L38="No Data",M38="No Data",N38="No Data"),IF(T26="N/A","N/A",(T26-T38)*'2. Census Data'!E17),AVERAGE(C38:N38)) -> N/A | T38: =IF(OR(T26="",T26="N/A",'2. Census Data'!$E$21=""),"N/A",T26*'2. Census Data'!$E$21) -> N/A
C39: =IF(C27=0,"No Data",(C27-T39)*'2. Census Data'!$E$17) -> No Data | D39: =IF(D27=0,"No Data",(D27-T39)*'2. Census Data'!$E$17) -> No Data | E39: =IF(E27=0,"No Data",(E27-T39)*'2. Census Data'!$E$17) -> No Data | F39: =IF(F27=0,"No Data",(F27-T39)*'2. Census Data'!$E$17) -> No Data | G39: =IF(G27=0,"No Data",(G27-T39)*'2. Census Data'!$E$17) -> No Data | H39: =IF(H27=0,"No Data",(H27-T39)*'2. Census Data'!$E$17) -> No Data | I39: =IF(I27=0,"No Data",(I27-T39)*'2. Census Data'!$E$17) -> No Data | J39: =IF(J27=0,"No Data",(J27-T39)*'2. Census Data'!$E$17) -> No Data | K39: =IF(K27=0,"No Data",(K27-T39)*'2. Census Data'!$E$17) -> No Data | L39: =IF(L27=0,"No Data",(L27-T39)*'2. Census Data'!$E$17) -> No Data | M39: =IF(M27=0,"No Data",(M27-T39)*'2. Census Data'!$E$17) -> No Data | N39: =IF(N27=0,"No Data",(N27-T39)*'2. Census Data'!$E$17) -> No Data | R39: =IF(OR(C39="No Data",D39="No Data",E39="No Data",F39="No Data",G39="No Data",H39="No Data",I39="No Data",J39="No Data",K39="No Data",L39="No Data",M39="No Data",N39="No Data"),IF(T27="N/A","N/A",(T27-T39)*'2. Census Data'!E17),AVERAGE(C39:N39)) -> N/A | T39: =IF(OR(T27="",T27="N/A",'2. Census Data'!$E$21=""),"N/A",T27*'2. Census Data'!$E$21) -> N/A
C40: =IF(C28=0,"No Data",(C28-T40)*'2. Census Data'!$E$17) -> No Data | D40: =IF(D28=0,"No Data",(D28-T40)*'2. Census Data'!$E$17) -> No Data | E40: =IF(E28=0,"No Data",(E28-T40)*'2. Census Data'!$E$17) -> No Data | F40: =IF(F28=0,"No Data",(F28-T40)*'2. Census Data'!$E$17) -> No Data | G40: =IF(G28=0,"No Data",(G28-T40)*'2. Census Data'!$E$17) -> No Data | H40: =IF(H28=0,"No Data",(H28-T40)*'2. Census Data'!$E$17) -> No Data | I40: =IF(I28=0,"No Data",(I28-T40)*'2. Census Data'!$E$17) -> No Data | J40: =IF(J28=0,"No Data",(J28-T40)*'2. Census Data'!$E$17) -> No Data | K40: =IF(K28=0,"No Data",(K28-T40)*'2. Census Data'!$E$17) -> No Data | L40: =IF(L28=0,"No Data",(L28-T40)*'2. Census Data'!$E$17) -> No Data | M40: =IF(M28=0,"No Data",(M28-T40)*'2. Census Data'!$E$17) -> No Data | N40: =IF(N28=0,"No Data",(N28-T40)*'2. Census Data'!$E$17) -> No Data | R40: =IF(OR(C40="No Data",D40="No Data",E40="No Data",F40="No Data",G40="No Data",H40="No Data",I40="No Data",J40="No Data",K40="No Data",L40="No Data",M40="No Data",N40="No Data"),IF(T28="N/A","N/A",(T28-T40)*'2. Census Data'!E17),AVERAGE(C40:N40)) -> N/A | T40: =IF(OR(T28="",T28="N/A",'2. Census Data'!$E$21=""),"N/A",T28*'2. Census Data'!$E$21) -> N/A
C41: =IF(C29=0,"No Data",(C29-T41)*'2. Census Data'!$E$17) -> No Data | D41: =IF(D29=0,"No Data",(D29-T41)*'2. Census Data'!$E$17) -> No Data | E41: =IF(E29=0,"No Data",(E29-T41)*'2. Census Data'!$E$17) -> No Data | F41: =IF(F29=0,"No Data",(F29-T41)*'2. Census Data'!$E$17) -> No Data | G41: =IF(G29=0,"No Data",(G29-T41)*'2. Census Data'!$E$17) -> No Data | H41: =IF(H29=0,"No Data",(H29-T41)*'2. Census Data'!$E$17) -> No Data | I41: =IF(I29=0,"No Data",(I29-T41)*'2. Census Data'!$E$17) -> No Data | J41: =IF(J29=0,"No Data",(J29-T41)*'2. Census Data'!$E$17) -> No Data | K41: =IF(K29=0,"No Data",(K29-T41)*'2. Census Data'!$E$17) -> No Data | L41: =IF(L29=0,"No Data",(L29-T41)*'2. Census Data'!$E$17) -> No Data | M41: =IF(M29=0,"No Data",(M29-T41)*'2. Census Data'!$E$17) -> No Data | N41: =IF(N29=0,"No Data",(N29-T41)*'2. Census Data'!$E$17) -> No Data | R41: =IF(OR(C41="No Data",D41="No Data",E41="No Data",F41="No Data",G41="No Data",H41="No Data",I41="No Data",J41="No Data",K41="No Data",L41="No Data",M41="No Data",N41="No Data"),IF(T29="N/A","N/A",(T29-T41)*'2. Census Data'!E17),AVERAGE(C41:N41)) -> N/A | T41: =IF(OR(T29="",T29="N/A",'2. Census Data'!$E$21=""),"N/A",T29*'2. Census Data'!$E$21) -> N/A
B45: TABLE 4.4 | F45: Formula = MFR Billed Water Consumption (Monthly) / MFR Population (Monthly) | T45: TABLE 4.11
B46: MFR GPCD CALCULATION (Monthly) | S46: ANNUAL MFR GPCD
B47: Year | C47: JAN | D47: FEB | E47: MAR | F47: APR | G47: MAY | H47: JUN | I47: JUL | J47: AUG | K47: SEP | L47: OCT | M47: NOV | N47: DEC | W47: Consump | X47: Conns
B48: =B35 ->  | C48: =IF(AND(ISNUMBER(C12),ISNUMBER(C23)),(IF('1. Instructions and Notations'!$E$38="Cubic Feet",C12*7.48051945,C12)/31)/C35,"No Data") -> No Data | D48: =IF(AND(ISNUMBER(D12),ISNUMBER(D23)),(IF('1. Instructions and Notations'!$E$38="Cubic Feet",D12*7.48051945,D12)/28)/D35,"No Data") -> No Data | E48: =IF(AND(ISNUMBER(E12),ISNUMBER(E23)),(IF('1. Instructions and Notations'!$E$38="Cubic Feet",E12*7.48051945,E12)/31)/E35,"No Data") -> No Data | F48: =IF(AND(ISNUMBER(F12),ISNUMBER(F23)),(IF('1. Instructions and Notations'!$E$38="Cubic Feet",F12*7.48051945,F12)/30)/F35,"No Data") -> No Data | G48: =IF(AND(ISNUMBER(G12),ISNUMBER(G23)),(IF('1. Instructions and Notations'!$E$38="Cubic Feet",G12*7.48051945,G12)/31)/G35,"No Data") -> No Data | H48: =IF(AND(ISNUMBER(H12),ISNUMBER(H23)),(IF('1. Instructions and Notations'!$E$38="Cubic Feet",H12*7.48051945,H12)/30)/H35,"No Data") -> No Data | I48: =IF(AND(ISNUMBER(I12),ISNUMBER(I23)),(IF('1. Instructions and Notations'!$E$38="Cubic Feet",I12*7.48051945,I12)/31)/I35,"No Data") -> No Data | J48: =IF(AND(ISNUMBER(J12),ISNUMBER(J23)),(IF('1. Instructions and Notations'!$E$38="Cubic Feet",J12*7.48051945,J12)/31)/J35,"No Data") -> No Data | K48: =IF(AND(ISNUMBER(K12),ISNUMBER(K23)),(IF('1. Instructions and Notations'!$E$38="Cubic Feet",K12*7.48051945,K12)/30)/K35,"No Data") -> No Data | L48: =IF(AND(ISNUMBER(L12),ISNUMBER(L23)),(IF('1. Instructions and Notations'!$E$38="Cubic Feet",L12*7.48051945,L12)/31)/L35,"No Data") -> No Data | M48: =IF(AND(ISNUMBER(M12),ISNUMBER(M23)),(IF('1. Instructions and Notations'!$E$38="Cubic Feet",M12*7.48051945,M12)/30)/M35,"No Data") -> No Data | N48: =IF(AND(ISNUMBER(N12),ISNUMBER(N23)),(IF('1. Instructions and Notations'!$E$38="Cubic Feet",N12*7.48051945,N12)/31)/N35,"No Data") -> No Data | R48: =IF(SUM(W48:X48)=1,IF(W48=1,"Add Connection Data","Add Consumption Data"),"") ->  | S48: =IF(OR(T12="N/A",R35="N/A",R35=0),"N/A",IF('1. Instructions and Notations'!$E$38="Cubic Feet",T12*7.48051945,T12)/(R35*365)) -> N/A | W48: =IF(OR(W12=1,R12>0),1,0) -> 0 | X48: =IF(OR(W23=1,AND(T23>0,T23<>"N/A")),1,0) -> 0
C49: =IF(AND(ISNUMBER(C13),ISNUMBER(C24)),(IF('1. Instructions and Notations'!$E$38="Cubic Feet",C13*7.48051945,C13)/31)/C36,"No Data") -> No Data | D49: =IF(AND(ISNUMBER(D13),ISNUMBER(D24)),(IF('1. Instructions and Notations'!$E$38="Cubic Feet",D13*7.48051945,D13)/28)/D36,"No Data") -> No Data | E49: =IF(AND(ISNUMBER(E13),ISNUMBER(E24)),(IF('1. Instructions and Notations'!$E$38="Cubic Feet",E13*7.48051945,E13)/31)/E36,"No Data") -> No Data | F49: =IF(AND(ISNUMBER(F13),ISNUMBER(F24)),(IF('1. Instructions and Notations'!$E$38="Cubic Feet",F13*7.48051945,F13)/30)/F36,"No Data") -> No Data | G49: =IF(AND(ISNUMBER(G13),ISNUMBER(G24)),(IF('1. Instructions and Notations'!$E$38="Cubic Feet",G13*7.48051945,G13)/31)/G36,"No Data") -> No Data | H49: =IF(AND(ISNUMBER(H13),ISNUMBER(H24)),(IF('1. Instructions and Notations'!$E$38="Cubic Feet",H13*7.48051945,H13)/30)/H36,"No Data") -> No Data | I49: =IF(AND(ISNUMBER(I13),ISNUMBER(I24)),(IF('1. Instructions and Notations'!$E$38="Cubic Feet",I13*7.48051945,I13)/31)/I36,"No Data") -> No Data | J49: =IF(AND(ISNUMBER(J13),ISNUMBER(J24)),(IF('1. Instructions and Notations'!$E$38="Cubic Feet",J13*7.48051945,J13)/31)/J36,"No Data") -> No Data | K49: =IF(AND(ISNUMBER(K13),ISNUMBER(K24)),(IF('1. Instructions and Notations'!$E$38="Cubic Feet",K13*7.48051945,K13)/30)/K36,"No Data") -> No Data | L49: =IF(AND(ISNUMBER(L13),ISNUMBER(L24)),(IF('1. Instructions and Notations'!$E$38="Cubic Feet",L13*7.48051945,L13)/31)/L36,"No Data") -> No Data | M49: =IF(AND(ISNUMBER(M13),ISNUMBER(M24)),(IF('1. Instructions and Notations'!$E$38="Cubic Feet",M13*7.48051945,M13)/30)/M36,"No Data") -> No Data | N49: =IF(AND(ISNUMBER(N13),ISNUMBER(N24)),(IF('1. Instructions and Notations'!$E$38="Cubic Feet",N13*7.48051945,N13)/31)/N36,"No Data") -> No Data | S49: =IF(OR(T13="N/A",R36="N/A",R36=0),"N/A",IF('1. Instructions and Notations'!$E$38="Cubic Feet",T13*7.48051945,T13)/(R36*365)) -> N/A | W49: 0 | X49: =IF(OR(W24=1,AND(T24>0,T24<>"N/A")),1,0) -> 0
C50: =IF(AND(ISNUMBER(C14),ISNUMBER(C25)),(IF('1. Instructions and Notations'!$E$38="Cubic Feet",C14*7.48051945,C14)/31)/C37,"No Data") -> No Data | D50: =IF(AND(ISNUMBER(D14),ISNUMBER(D25)),(IF('1. Instructions and Notations'!$E$38="Cubic Feet",D14*7.48051945,D14)/28)/D37,"No Data") -> No Data | E50: =IF(AND(ISNUMBER(E14),ISNUMBER(E25)),(IF('1. Instructions and Notations'!$E$38="Cubic Feet",E14*7.48051945,E14)/31)/E37,"No Data") -> No Data | F50: =IF(AND(ISNUMBER(F14),ISNUMBER(F25)),(IF('1. Instructions and Notations'!$E$38="Cubic Feet",F14*7.48051945,F14)/30)/F37,"No Data") -> No Data | G50: =IF(AND(ISNUMBER(G14),ISNUMBER(G25)),(IF('1. Instructions and Notations'!$E$38="Cubic Feet",G14*7.48051945,G14)/31)/G37,"No Data") -> No Data | H50: =IF(AND(ISNUMBER(H14),ISNUMBER(H25)),(IF('1. Instructions and Notations'!$E$38="Cubic Feet",H14*7.48051945,H14)/30)/H37,"No Data") -> No Data | I50: =IF(AND(ISNUMBER(I14),ISNUMBER(I25)),(IF('1. Instructions and Notations'!$E$38="Cubic Feet",I14*7.48051945,I14)/31)/I37,"No Data") -> No Data | J50: =IF(AND(ISNUMBER(J14),ISNUMBER(J25)),(IF('1. Instructions and Notations'!$E$38="Cubic Feet",J14*7.48051945,J14)/31)/J37,"No Data") -> No Data | K50: =IF(AND(ISNUMBER(K14),ISNUMBER(K25)),(IF('1. Instructions and Notations'!$E$38="Cubic Feet",K14*7.48051945,K14)/30)/K37,"No Data") -> No Data | L50: =IF(AND(ISNUMBER(L14),ISNUMBER(L25)),(IF('1. Instructions and Notations'!$E$38="Cubic Feet",L14*7.48051945,L14)/31)/L37,"No Data") -> No Data | M50: =IF(AND(ISNUMBER(M14),ISNUMBER(M25)),(IF('1. Instructions and Notations'!$E$38="Cubic Feet",M14*7.48051945,M14)/30)/M37,"No Data") -> No Data | N50: =IF(AND(ISNUMBER(N14),ISNUMBER(N25)),(IF('1. Instructions and Notations'!$E$38="Cubic Feet",N14*7.48051945,N14)/31)/N37,"No Data") -> No Data | S50: =IF(OR(T14="N/A",R37="N/A",R37=0),"N/A",IF('1. Instructions and Notations'!$E$38="Cubic Feet",T14*7.48051945,T14)/(R37*365)) -> N/A | W50: 0 | X50: 0
C51: =IF(AND(ISNUMBER(C15),ISNUMBER(C26)),(IF('1. Instructions and Notations'!$E$38="Cubic Feet",C15*7.48051945,C15)/31)/C38,"No Data") -> No Data | D51: =IF(AND(ISNUMBER(D15),ISNUMBER(D26)),(IF('1. Instructions and Notations'!$E$38="Cubic Feet",D15*7.48051945,D15)/28)/D38,"No Data") -> No Data | E51: =IF(AND(ISNUMBER(E15),ISNUMBER(E26)),(IF('1. Instructions and Notations'!$E$38="Cubic Feet",E15*7.48051945,E15)/31)/E38,"No Data") -> No Data | F51: =IF(AND(ISNUMBER(F15),ISNUMBER(F26)),(IF('1. Instructions and Notations'!$E$38="Cubic Feet",F15*7.48051945,F15)/30)/F38,"No Data") -> No Data | G51: =IF(AND(ISNUMBER(G15),ISNUMBER(G26)),(IF('1. Instructions and Notations'!$E$38="Cubic Feet",G15*7.48051945,G15)/31)/G38,"No Data") -> No Data | H51: =IF(AND(ISNUMBER(H15),ISNUMBER(H26)),(IF('1. Instructions and Notations'!$E$38="Cubic Feet",H15*7.48051945,H15)/30)/H38,"No Data") -> No Data | I51: =IF(AND(ISNUMBER(I15),ISNUMBER(I26)),(IF('1. Instructions and Notations'!$E$38="Cubic Feet",I15*7.48051945,I15)/31)/I38,"No Data") -> No Data | J51: =IF(AND(ISNUMBER(J15),ISNUMBER(J26)),(IF('1. Instructions and Notations'!$E$38="Cubic Feet",J15*7.48051945,J15)/31)/J38,"No Data") -> No Data | K51: =IF(AND(ISNUMBER(K15),ISNUMBER(K26)),(IF('1. Instructions and Notations'!$E$38="Cubic Feet",K15*7.48051945,K15)/30)/K38,"No Data") -> No Data | L51: =IF(AND(ISNUMBER(L15),ISNUMBER(L26)),(IF('1. Instructions and Notations'!$E$38="Cubic Feet",L15*7.48051945,L15)/31)/L38,"No Data") -> No Data | M51: =IF(AND(ISNUMBER(M15),ISNUMBER(M26)),(IF('1. Instructions and Notations'!$E$38="Cubic Feet",M15*7.48051945,M15)/30)/M38,"No Data") -> No Data | N51: =IF(AND(ISNUMBER(N15),ISNUMBER(N26)),(IF('1. Instructions and Notations'!$E$38="Cubic Feet",N15*7.48051945,N15)/31)/N38,"No Data") -> No Data | S51: =IF(OR(T15="N/A",R38="N/A",R38=0),"N/A",IF('1. Instructions and Notations'!$E$38="Cubic Feet",T15*7.48051945,T15)/(R38*365)) -> N/A | W51: 0 | X51: 0
C52: =IF(AND(ISNUMBER(C16),ISNUMBER(C27)),(IF('1. Instructions and Notations'!$E$38="Cubic Feet",C16*7.48051945,C16)/31)/C39,"No Data") -> No Data | D52: =IF(AND(ISNUMBER(D16),ISNUMBER(D27)),(IF('1. Instructions and Notations'!$E$38="Cubic Feet",D16*7.48051945,D16)/28)/D39,"No Data") -> No Data | E52: =IF(AND(ISNUMBER(E16),ISNUMBER(E27)),(IF('1. Instructions and Notations'!$E$38="Cubic Feet",E16*7.48051945,E16)/31)/E39,"No Data") -> No Data | F52: =IF(AND(ISNUMBER(F16),ISNUMBER(F27)),(IF('1. Instructions and Notations'!$E$38="Cubic Feet",F16*7.48051945,F16)/30)/F39,"No Data") -> No Data | G52: =IF(AND(ISNUMBER(G16),ISNUMBER(G27)),(IF('1. Instructions and Notations'!$E$38="Cubic Feet",G16*7.48051945,G16)/31)/G39,"No Data") -> No Data | H52: =IF(AND(ISNUMBER(H16),ISNUMBER(H27)),(IF('1. Instructions and Notations'!$E$38="Cubic Feet",H16*7.48051945,H16)/30)/H39,"No Data") -> No Data | I52: =IF(AND(ISNUMBER(I16),ISNUMBER(I27)),(IF('1. Instructions and Notations'!$E$38="Cubic Feet",I16*7.48051945,I16)/31)/I39,"No Data") -> No Data | J52: =IF(AND(ISNUMBER(J16),ISNUMBER(J27)),(IF('1. Instructions and Notations'!$E$38="Cubic Feet",J16*7.48051945,J16)/31)/J39,"No Data") -> No Data | K52: =IF(AND(ISNUMBER(K16),ISNUMBER(K27)),(IF('1. Instructions and Notations'!$E$38="Cubic Feet",K16*7.48051945,K16)/30)/K39,"No Data") -> No Data | L52: =IF(AND(ISNUMBER(L16),ISNUMBER(L27)),(IF('1. Instructions and Notations'!$E$38="Cubic Feet",L16*7.48051945,L16)/31)/L39,"No Data") -> No Data | M52: =IF(AND(ISNUMBER(M16),ISNUMBER(M27)),(IF('1. Instructions and Notations'!$E$38="Cubic Feet",M16*7.48051945,M16)/30)/M39,"No Data") -> No Data | N52: =IF(AND(ISNUMBER(N16),ISNUMBER(N27)),(IF('1. Instructions and Notations'!$E$38="Cubic Feet",N16*7.48051945,N16)/31)/N39,"No Data") -> No Data | S52: =IF(OR(T16="N/A",R39="N/A",R39=0),"N/A",IF('1. Instructions and Notations'!$E$38="Cubic Feet",T16*7.48051945,T16)/(R39*365)) -> N/A | W52: 0 | X52: 0
C53: =IF(AND(ISNUMBER(C17),ISNUMBER(C28)),(IF('1. Instructions and Notations'!$E$38="Cubic Feet",C17*7.48051945,C17)/31)/C40,"No Data") -> No Data | D53: =IF(AND(ISNUMBER(D17),ISNUMBER(D28)),(IF('1. Instructions and Notations'!$E$38="Cubic Feet",D17*7.48051945,D17)/28)/D40,"No Data") -> No Data | E53: =IF(AND(ISNUMBER(E17),ISNUMBER(E28)),(IF('1. Instructions and Notations'!$E$38="Cubic Feet",E17*7.48051945,E17)/31)/E40,"No Data") -> No Data | F53: =IF(AND(ISNUMBER(F17),ISNUMBER(F28)),(IF('1. Instructions and Notations'!$E$38="Cubic Feet",F17*7.48051945,F17)/30)/F40,"No Data") -> No Data | G53: =IF(AND(ISNUMBER(G17),ISNUMBER(G28)),(IF('1. Instructions and Notations'!$E$38="Cubic Feet",G17*7.48051945,G17)/31)/G40,"No Data") -> No Data | H53: =IF(AND(ISNUMBER(H17),ISNUMBER(H28)),(IF('1. Instructions and Notations'!$E$38="Cubic Feet",H17*7.48051945,H17)/30)/H40,"No Data") -> No Data | I53: =IF(AND(ISNUMBER(I17),ISNUMBER(I28)),(IF('1. Instructions and Notations'!$E$38="Cubic Feet",I17*7.48051945,I17)/31)/I40,"No Data") -> No Data | J53: =IF(AND(ISNUMBER(J17),ISNUMBER(J28)),(IF('1. Instructions and Notations'!$E$38="Cubic Feet",J17*7.48051945,J17)/31)/J40,"No Data") -> No Data | K53: =IF(AND(ISNUMBER(K17),ISNUMBER(K28)),(IF('1. Instructions and Notations'!$E$38="Cubic Feet",K17*7.48051945,K17)/30)/K40,"No Data") -> No Data | L53: =IF(AND(ISNUMBER(L17),ISNUMBER(L28)),(IF('1. Instructions and Notations'!$E$38="Cubic Feet",L17*7.48051945,L17)/31)/L40,"No Data") -> No Data | M53: =IF(AND(ISNUMBER(M17),ISNUMBER(M28)),(IF('1. Instructions and Notations'!$E$38="Cubic Feet",M17*7.48051945,M17)/30)/M40,"No Data") -> No Data | N53: =IF(AND(ISNUMBER(N17),ISNUMBER(N28)),(IF('1. Instructions and Notations'!$E$38="Cubic Feet",N17*7.48051945,N17)/31)/N40,"No Data") -> No Data | S53: =IF(OR(T17="N/A",R40="N/A",R40=0),"N/A",IF('1. Instructions and Notations'!$E$38="Cubic Feet",T17*7.48051945,T17)/(R40*365)) -> N/A | W53: 0 | X53: 0
C54: =IF(AND(ISNUMBER(C18),ISNUMBER(C29)),(IF('1. Instructions and Notations'!$E$38="Cubic Feet",C18*7.48051945,C18)/31)/C41,"No Data") -> No Data | D54: =IF(AND(ISNUMBER(D18),ISNUMBER(D29)),(IF('1. Instructions and Notations'!$E$38="Cubic Feet",D18*7.48051945,D18)/28)/D41,"No Data") -> No Data | E54: =IF(AND(ISNUMBER(E18),ISNUMBER(E29)),(IF('1. Instructions and Notations'!$E$38="Cubic Feet",E18*7.48051945,E18)/31)/E41,"No Data") -> No Data | F54: =IF(AND(ISNUMBER(F18),ISNUMBER(F29)),(IF('1. Instructions and Notations'!$E$38="Cubic Feet",F18*7.48051945,F18)/30)/F41,"No Data") -> No Data | G54: =IF(AND(ISNUMBER(G18),ISNUMBER(G29)),(IF('1. Instructions and Notations'!$E$38="Cubic Feet",G18*7.48051945,G18)/31)/G41,"No Data") -> No Data | H54: =IF(AND(ISNUMBER(H18),ISNUMBER(H29)),(IF('1. Instructions and Notations'!$E$38="Cubic Feet",H18*7.48051945,H18)/30)/H41,"No Data") -> No Data | I54: =IF(AND(ISNUMBER(I18),ISNUMBER(I29)),(IF('1. Instructions and Notations'!$E$38="Cubic Feet",I18*7.48051945,I18)/31)/I41,"No Data") -> No Data | J54: =IF(AND(ISNUMBER(J18),ISNUMBER(J29)),(IF('1. Instructions and Notations'!$E$38="Cubic Feet",J18*7.48051945,J18)/31)/J41,"No Data") -> No Data | K54: =IF(AND(ISNUMBER(K18),ISNUMBER(K29)),(IF('1. Instructions and Notations'!$E$38="Cubic Feet",K18*7.48051945,K18)/30)/K41,"No Data") -> No Data | L54: =IF(AND(ISNUMBER(L18),ISNUMBER(L29)),(IF('1. Instructions and Notations'!$E$38="Cubic Feet",L18*7.48051945,L18)/31)/L41,"No Data") -> No Data | M54: =IF(AND(ISNUMBER(M18),ISNUMBER(M29)),(IF('1. Instructions and Notations'!$E$38="Cubic Feet",M18*7.48051945,M18)/30)/M41,"No Data") -> No Data | N54: =IF(AND(ISNUMBER(N18),ISNUMBER(N29)),(IF('1. Instructions and Notations'!$E$38="Cubic Feet",N18*7.48051945,N18)/31)/N41,"No Data") -> No Data | S54: =IF(OR(T18="N/A",R41="N/A",R41=0),"N/A",IF('1. Instructions and Notations'!$E$38="Cubic Feet",T18*7.48051945,T18)/(R41*365)) -> N/A | W54: 0 | X54: 0
B56: COMMENTS:

Sheet 5. ICI & Other Metered
B2: DATA INPUT SHEET | E2: 5. INDUSTRIAL, COMMERCIAL & INSTITUTIONAL (ICI) AND OTHER METERED
C5: =IF(ISBLANK('1. Instructions and Notations'!$D$28),"",'1. Instructions and Notations'!$D$28) -> 
G6: MONTHLY DATA | Q6: ANNUAL DATA
B7: Instructions
L8: ='1. Instructions and Notations'!E31 -> 0 | M8: TO | N8: ='1. Instructions and Notations'!I31 -> 
B9: TABLE 5.1 | E9: =IF('1. Instructions and Notations'!$E$38="Choose units..."," First select reporting units for volume data on the instructions worksheet","") -> First select reporting units for volume data on the instructions worksheet | R9: TABLE 5.3 | T9: TABLE 5.4 | Y9: TABLE 5.5
B10: ="ICI WATER CONSUMPTION ("&'1. Instructions and Notations'!E38&")" -> ICI WATER CONSUMPTION (Choose units...) | R10: ICI ANNUAL CONSUMPTION | T10: ICI GPCD | Y10: ICI ANNUAL CALCULATED
B11: Year | C11: JAN | D11: FEB | E11: MAR | F11: APR | G11: MAY | H11: JUN | I11: JUL | J11: AUG | K11: SEP | L11: OCT | M11: NOV | N11: DEC
B12: ='3. Single-family'!B16 ->  | T12: =IF(AND(W12=0,R12=0),"N/A",(IF(W12=1,AVERAGE(C12:N12)*IF('1. Instructions and Notations'!$E$38="Cubic Feet",7.48051945,1),IF('1. Instructions and Notations'!$E$38="Cubic Feet",R12*7.48051945,R12)/12)/30.41667/'7. Total Diverted'!T47)) -> N/A | W12: =IF(OR(C12=0,D12=0,E12=0,F12=0,G12=0,H12=0,I12=0,J12=0,K12=0,L12=0,M12=0,N12=0),0,1) -> 0 | Y12: =IF(W12=1,SUM(C12:N12),IF(R12=0,"N/A",R12)) -> N/A
B13: ='3. Single-family'!B17 ->  | T13: =IF(AND(W13=0,R13=0),"N/A",(IF(W13=1,AVERAGE(C13:N13)*IF('1. Instructions and Notations'!$E$38="Cubic Feet",7.48051945,1),IF('1. Instructions and Notations'!$E$38="Cubic Feet",R13*7.48051945,R13)/12)/30.41667/'7. Total Diverted'!T48)) -> N/A | W13: =IF(OR(C13=0,D13=0,E13=0,F13=0,G13=0,H13=0,I13=0,J13=0,K13=0,L13=0,M13=0,N13=0),0,1) -> 0 | Y13: =IF(W13=1,SUM(C13:N13),IF(R13=0,"N/A",R13)) -> N/A
B14: ='3. Single-family'!B18 ->  | T14: =IF(AND(W14=0,R14=0),"N/A",(IF(W14=1,AVERAGE(C14:N14)*IF('1. Instructions and Notations'!$E$38="Cubic Feet",7.48051945,1),IF('1. Instructions and Notations'!$E$38="Cubic Feet",R14*7.48051945,R14)/12)/30.41667/'7. Total Diverted'!T49)) -> N/A | W14: 0 | Y14: N/A
B15: ='3. Single-family'!B19 ->  | T15: =IF(AND(W15=0,R15=0),"N/A",(IF(W15=1,AVERAGE(C15:N15)*IF('1. Instructions and Notations'!$E$38="Cubic Feet",7.48051945,1),IF('1. Instructions and Notations'!$E$38="Cubic Feet",R15*7.48051945,R15)/12)/30.41667/'7. Total Diverted'!T50)) -> N/A | W15: =IF(OR(C15=0,D15=0,E15=0,F15=0,G15=0,H15=0,I15=0,J15=0,K15=0,L15=0,M15=0,N15=0),0,1) -> 0 | Y15: N/A
B16: ='3. Single-family'!B20 ->  | T16: =IF(AND(W16=0,R16=0),"N/A",(IF(W16=1,AVERAGE(C16:N16)*IF('1. Instructions and Notations'!$E$38="Cubic Feet",7.48051945,1),IF('1. Instructions and Notations'!$E$38="Cubic Feet",R16*7.48051945,R16)/12)/30.41667/'7. Total Diverted'!T51)) -> N/A | W16: 0 | Y16: N/A
B17: ='3. Single-family'!B21 ->  | T17: =IF(AND(W17=0,R17=0),"N/A",(IF(W17=1,AVERAGE(C17:N17)*IF('1. Instructions and Notations'!$E$38="Cubic Feet",7.48051945,1),IF('1. Instructions and Notations'!$E$38="Cubic Feet",R17*7.48051945,R17)/12)/30.41667/'7. Total Diverted'!T52)) -> N/A | W17: 0 | Y17: N/A
B18: ='3. Single-family'!B22 ->  | T18: =IF(AND(W18=0,R18=0),"N/A",(IF(W18=1,AVERAGE(C18:N18)*IF('1. Instructions and Notations'!$E$38="Cubic Feet",7.48051945,1),IF('1. Instructions and Notations'!$E$38="Cubic Feet",R18*7.48051945,R18)/12)/30.41667/'7. Total Diverted'!T53)) -> N/A | W18: 0 | Y18: N/A
B21: TABLE 5.2 | D21: =IF('1. Instructions and Notations'!$E$38="Choose units…"," First select reporting units for volume data on the instructions worksheet","") ->  | R21: TABLE 5.6 | T21: TABLE 5.7 | Y21: TABLE 5.8
B22: ="OTHER METERED ("&'1. Instructions and Notations'!E38&")" -> OTHER METERED (Choose units...) | R22: OTHER ANNUAL CONSUMPTION | T22: OTHER METERED GPCD | Y22: OTHER ANNUAL CALCULATED
B23: Year | C23: JAN | D23: FEB | E23: MAR | F23: APR | G23: MAY | H23: JUN | I23: JUL | J23: AUG | K23: SEP | L23: OCT | M23: NOV | N23: DEC
B24: =B12 ->  | T24: =IF(AND(W24=0,R24=0),"N/A",(IF(W24=1,AVERAGE(C24:N24)*IF('1. Instructions and Notations'!$E$38="Cubic Feet",7.48051945,1),IF('1. Instructions and Notations'!$E$38="Cubic Feet",R24*7.48051945,R24)/12)/30.41667/'7. Total Diverted'!T47)) -> N/A | W24: =IF(OR(C24=0,D24=0,E24=0,F24=0,G24=0,H24=0,I24=0,J24=0,K24=0,L24=0,M24=0,N24=0),0,1) -> 0 | Y24: =IF(W24=1,SUM(C24:N24),IF(R24=0,"N/A",R24)) -> N/A
B25: =B13 ->  | T25: =IF(AND(W25=0,R25=0),"N/A",(IF(W25=1,AVERAGE(C25:N25)*IF('1. Instructions and Notations'!$E$38="Cubic Feet",7.48051945,1),IF('1. Instructions and Notations'!$E$38="Cubic Feet",R25*7.48051945,R25)/12)/30.41667/'7. Total Diverted'!T48)) -> N/A | W25: 0 | Y25: =IF(W25=1,SUM(C25:N25),IF(R25=0,"N/A",R25)) -> N/A
T26: =IF(AND(W26=0,R26=0),"N/A",(IF(W26=1,AVERAGE(C26:N26)*IF('1. Instructions and Notations'!$E$38="Cubic Feet",7.48051945,1),IF('1. Instructions and Notations'!$E$38="Cubic Feet",R26*7.48051945,R26)/12)/30.41667/'7. Total Diverted'!T49)) -> N/A | W26: 0 | Y26: N/A
T27: =IF(AND(W27=0,R27=0),"N/A",(IF(W27=1,AVERAGE(C27:N27)*IF('1. Instructions and Notations'!$E$38="Cubic Feet",7.48051945,1),IF('1. Instructions and Notations'!$E$38="Cubic Feet",R27*7.48051945,R27)/12)/30.41667/'7. Total Diverted'!T50)) -> N/A | W27: 0 | Y27: N/A
T28: =IF(AND(W28=0,R28=0),"N/A",(IF(W28=1,AVERAGE(C28:N28)*IF('1. Instructions and Notations'!$E$38="Cubic Feet",7.48051945,1),IF('1. Instructions and Notations'!$E$38="Cubic Feet",R28*7.48051945,R28)/12)/30.41667/'7. Total Diverted'!T51)) -> N/A | W28: 0 | Y28: N/A
T29: =IF(AND(W29=0,R29=0),"N/A",(IF(W29=1,AVERAGE(C29:N29)*IF('1. Instructions and Notations'!$E$38="Cubic Feet",7.48051945,1),IF('1. Instructions and Notations'!$E$38="Cubic Feet",R29*7.48051945,R29)/12)/30.41667/'7. Total Diverted'!T52)) -> N/A | W29: 0 | Y29: N/A
T30: =IF(AND(W30=0,R30=0),"N/A",(IF(W30=1,AVERAGE(C30:N30)*IF('1. Instructions and Notations'!$E$38="Cubic Feet",7.48051945,1),IF('1. Instructions and Notations'!$E$38="Cubic Feet",R30*7.48051945,R30)/12)/30.41667/'7. Total Diverted'!T53)) -> N/A | W30: 0 | Y30: N/A
B32: COMMENTS:
B38: =B15 ->  | W38: =IF(SUM(C38:N38)=0,"No Data",((AVERAGE(C38:N38)/30.41667)/#REF!)) -> No Data
B39: =B16 ->  | W39: =IF(SUM(C39:N39)=0,"No Data",((AVERAGE(C39:N39)/30.41667)/#REF!)) -> No Data
B40: =B17 ->  | W40: =IF(SUM(C40:N40)=0,"No Data",((AVERAGE(C40:N40)/30.41667)/#REF!)) -> No Data
B41: =B18 ->  | W41: =IF(SUM(C41:N41)=0,"No Data",((AVERAGE(C41:N41)/30.41667)/#REF!)) -> No Data
B42: =B19 -> 0 | W42: =IF(SUM(C42:N42)=0,"No Data",((AVERAGE(C42:N42)/30.41667)/#REF!)) -> No Data

Sheet 6. Reuse
B2: DATA INPUT SHEET | E2: 6. REUSE
C5: =IF(ISBLANK('1. Instructions and Notations'!$D$28),"",'1. Instructions and Notations'!$D$28) -> 
G6: MONTHLY DATA | Q6: ANNUAL DATA
B7: Instructions
L8: ='1. Instructions and Notations'!E31 -> 0 | M8: TO | N8: ='1. Instructions and Notations'!I31 -> 
B9: TABLE 6.1 | E9: =IF('1. Instructions and Notations'!$E$38="Choose units..."," First select reporting units for volume data on the instructions worksheet","") -> First select reporting units for volume data on the instructions worksheet | R9: TABLE 6.2 | T9: TABLE 6.3
B10: ="REUSE DIVERSIONS (Monthly) ("&'1. Instructions and Notations'!E38&")" -> REUSE DIVERSIONS (Monthly) (Choose units...) | R10: REUSE ANNUAL DIVERSIONS | T10: REUSE GPCD | Y10: Annual Reuse
B11: Year | C11: JAN | D11: FEB | E11: MAR | F11: APR | G11: MAY | H11: JUN | I11: JUL | J11: AUG | K11: SEP | L11: OCT | M11: NOV | N11: DEC
B12: ='3. Single-family'!B16 ->  | T12: =IF(AND(W12=0,R12=0),"N/A",(IF(W12=1,AVERAGE(C12:N12)*IF('1. Instructions and Notations'!$E$38="Cubic Feet",7.48051945,1),IF('1. Instructions and Notations'!$E$38="Cubic Feet",R12*7.48051945,R12)/12)/30.41667/'7. Total Diverted'!W11)) -> N/A | W12: =IF(OR(C12=0,D12=0,E12=0,F12=0,G12=0,H12=0,I12=0,J12=0,K12=0,L12=0,M12=0,N12=0),0,1) -> 0 | Y12: =IF(W12=1,SUM(C12:N12),IF(R12=0,"N/A",R12)) -> N/A
B13: ='3. Single-family'!B17 ->  | T13: =IF(AND(W13=0,R13=0),"N/A",(IF(W13=1,AVERAGE(C13:N13)*IF('1. Instructions and Notations'!$E$38="Cubic Feet",7.48051945,1),IF('1. Instructions and Notations'!$E$38="Cubic Feet",R13*7.48051945,R13)/12)/30.41667/'7. Total Diverted'!W12)) -> N/A | W13: 0 | Y13: N/A
B14: ='3. Single-family'!B18 ->  | T14: =IF(AND(W14=0,R14=0),"N/A",(IF(W14=1,AVERAGE(C14:N14)*IF('1. Instructions and Notations'!$E$38="Cubic Feet",7.48051945,1),IF('1. Instructions and Notations'!$E$38="Cubic Feet",R14*7.48051945,R14)/12)/30.41667/'7. Total Diverted'!W13)) -> N/A | W14: 0 | Y14: N/A
B15: ='3. Single-family'!B19 ->  | T15: =IF(AND(W15=0,R15=0),"N/A",(IF(W15=1,AVERAGE(C15:N15)*IF('1. Instructions and Notations'!$E$38="Cubic Feet",7.48051945,1),IF('1. Instructions and Notations'!$E$38="Cubic Feet",R15*7.48051945,R15)/12)/30.41667/'7. Total Diverted'!W14)) -> N/A | W15: 0 | Y15: N/A
B16: ='3. Single-family'!B20 ->  | T16: =IF(AND(W16=0,R16=0),"N/A",(IF(W16=1,AVERAGE(C16:N16)*IF('1. Instructions and Notations'!$E$38="Cubic Feet",7.48051945,1),IF('1. Instructions and Notations'!$E$38="Cubic Feet",R16*7.48051945,R16)/12)/30.41667/'7. Total Diverted'!W15)) -> N/A | W16: 0 | Y16: N/A
B17: ='3. Single-family'!B21 ->  | T17: =IF(AND(W17=0,R17=0),"N/A",(IF(W17=1,AVERAGE(C17:N17)*IF('1. Instructions and Notations'!$E$38="Cubic Feet",7.48051945,1),IF('1. Instructions and Notations'!$E$38="Cubic Feet",R17*7.48051945,R17)/12)/30.41667/'7. Total Diverted'!W16)) -> N/A | W17: 0 | Y17: N/A
B18: ='3. Single-family'!B22 ->  | T18: =IF(AND(W18=0,R18=0),"N/A",(IF(W18=1,AVERAGE(C18:N18)*IF('1. Instructions and Notations'!$E$38="Cubic Feet",7.48051945,1),IF('1. Instructions and Notations'!$E$38="Cubic Feet",R18*7.48051945,R18)/12)/30.41667/'7. Total Diverted'!W17)) -> N/A | W18: 0 | Y18: N/A
B20: REUSE CONSUMPTION
B22: Year | C22: JAN | D22: FEB | E22: MAR | F22: APR | G22: MAY | H22: JUN | I22: JUL | J22: AUG | K22: SEP | L22: OCT | M22: NOV | N22: DEC | R22: ANNUAL REUSE | T22: ANNUAL REUSE | W22: TOTAL GPCD W/REUSE
B23: =B13 ->  | W23: =IF(SUM(C23:N23)=0,"No Data",((AVERAGE(C23:N23)/30.41667)/#REF!)) -> No Data
W24: =IF(SUM(C24:N24)=0,"No Data",((AVERAGE(C24:N24)/30.41667)/#REF!)) -> No Data
W25: =IF(SUM(C25:N25)=0,"No Data",((AVERAGE(C25:N25)/30.41667)/#REF!)) -> No Data
W26: =IF(SUM(C26:N26)=0,"No Data",((AVERAGE(C26:N26)/30.41667)/#REF!)) -> No Data
W27: =IF(SUM(C27:N27)=0,"No Data",((AVERAGE(C27:N27)/30.41667)/#REF!)) -> No Data
W28: =IF(SUM(C28:N28)=0,"No Data",((AVERAGE(C28:N28)/30.41667)/#REF!)) -> No Data
B29: =#REF! ->  | W29: =IF(SUM(C29:N29)=0,"No Data",((AVERAGE(C29:N29)/30.41667)/#REF!)) -> No Data
B31: COMMENTS:

Sheet 7. Total Diverted
B2: DATA INPUT SHEET | F2: 7. TOTAL WATER DIVERTED AND SUPPLIED
C5: =IF(ISBLANK('1. Instructions and Notations'!$D$28),"",'1. Instructions and Notations'!$D$28) -> 
A6: MONTHLY DATA | Q6: ANNUAL DATA
B8: TABLE 7.1 | E8: =IF('1. Instructions and Notations'!$E$38="Choose units..."," First select reporting units for volume data on the instructions worksheet","") -> First select reporting units for volume data on the instructions worksheet | L8: ='1. Instructions and Notations'!E31 -> 0 | M8: TO | N8: ='1. Instructions and Notations'!I31 ->  | R8: TABLE 7.6 | T8: TABLE 7.7 | W8: TABLE 6.6
B9: ="TOTAL WATER DIVERTED (Monthly) ("&'1. Instructions and Notations'!E38&")" -> TOTAL WATER DIVERTED (Monthly) (Choose units...) | R9: ANNUAL TOTAL DIVERTED | T9: ANNUAL TOTAL DIVERTED CALC | W9: TOTAL POP. EST.
B10: Year | C10: JAN | D10: FEB | E10: MAR | F10: APR | G10: MAY | H10: JUN | I10: JUL | J10: AUG | K10: SEP | L10: OCT | M10: NOV | N10: DEC
B11: ='3. Single-family'!B16 ->  | T11: =IF(X11=1,SUM(C11:N11),IF(R11=0,"N/A",R11)) -> N/A | W11: =T47 -> N/A | X11: =IF(OR(C11=0,D11=0,E11=0,F11=0,G11=0,H11=0,I11=0,J11=0,K11=0,L11=0,M11=0,N11=0),0,1) -> 0
B12: ='3. Single-family'!B17 ->  | T12: N/A | W12: =T48 -> N/A | X12: 0
B13: ='3. Single-family'!B18 ->  | T13: N/A | W13: N/A | X13: 0
B14: ='3. Single-family'!B19 ->  | T14: N/A | W14: N/A | X14: 0
B15: ='3. Single-family'!B20 ->  | T15: N/A | W15: N/A | X15: 0
B16: ='3. Single-family'!B21 ->  | T16: N/A | W16: N/A | X16: 0
B17: ='3. Single-family'!B22 ->  | T17: N/A | W17: N/A | X17: 0
B20: TABLE 7.2 | R20: TABLE 7.8 | T20: TABLE 7.9
B21: ="IMPORTED WATER (Monthly)("&'1. Instructions and Notations'!E38&")" -> IMPORTED WATER (Monthly)(Choose units...) | R21: ANNUAL TOTAL IMPORTED | T21: ANNUAL TOTAL IMPORT CALC
B22: Year | C22: JAN | D22: FEB | E22: MAR | F22: APR | G22: MAY | H22: JUN | I22: JUL | J22: AUG | K22: SEP | L22: OCT | M22: NOV | N22: DEC
B23: =B11 ->  | T23: =IF(X23=1,SUM(C23:N23),IF(R23=0,"N/A",R23)) -> N/A | X23: =IF(OR(C23=0,D23=0,E23=0,F23=0,G23=0,H23=0,I23=0,J23=0,K23=0,L23=0,M23=0,N23=0),0,1) -> 0
T24: N/A | X24: 0
T25: N/A | X25: 0
T26: N/A | X26: 0
T27: N/A | X27: 0
T28: N/A | X28: 0
T29: N/A | X29: 0
B32: TABLE 7.3 | R32: TABLE 7.10 | T32: TABLE 7.11
B33: ="EXPORTED WATER (Monthly) ("&'1. Instructions and Notations'!E38&")" -> EXPORTED WATER (Monthly) (Choose units...) | R33: ANNUAL TOTAL EXPORTED | T33: ANNUAL TOTAL EXPORT CALC
B34: Year | C34: JAN | D34: FEB | E34: MAR | F34: APR | G34: MAY | H34: JUN | I34: JUL | J34: AUG | K34: SEP | L34: OCT | M34: NOV | N34: DEC
B35: =B11 ->  | T35: =IF(X35=1,SUM(C35:N35),IF(R35=0,"N/A",R35)) -> N/A | X35: =IF(OR(C35=0,D35=0,E35=0,F35=0,G35=0,H35=0,I35=0,J35=0,K35=0,L35=0,M35=0,N35=0),0,1) -> 0
T36: N/A | X36: 0
T37: N/A | X37: 0
T38: N/A | X38: 0
T39: N/A | X39: 0
T40: N/A | X40: 0
T41: N/A | X41: 0
B44: TABLE 7.4 | F44: Formula = Total Water Diverted + Imported water - Exported Water | R44: TABLE 7.12 | T44: TABLE 7.13
B45: ="TOTAL WATER SUPPLY (Monthly) ("&'1. Instructions and Notations'!E38&")" -> TOTAL WATER SUPPLY (Monthly) (Choose units...) | R45: ANNUAL TOTAL WATER SUPPLY | T45: =W9 -> TOTAL POP. EST.
B46: Year | C46: JAN | D46: FEB | E46: MAR | F46: APR | G46: MAY | H46: JUN | I46: JUL | J46: AUG | K46: SEP | L46: OCT | M46: NOV | N46: DEC
B47: =B11 ->  | C47: =C11+C23-C35 -> 0 | D47: 0 | E47: 0 | F47: 0 | G47: 0 | H47: 0 | I47: 0 | J47: 0 | K47: 0 | L47: 0 | M47: 0 | N47: 0 | R47: =IF(T11="N/A",0,T11)+IF(T23="N/A",0,T23)-IF(T35="N/A",0,T35) -> 0 | T47: =IF('3. Single-family'!T49="N/A","N/A",'3. Single-family'!T49+IF('4. Multi-family'!R35="N/A",0,'4. Multi-family'!R35)+'2. Census Data'!$E$13) -> N/A | X47: =IF(OR(C47=0,D47=0,E47=0,F47=0,G47=0,H47=0,I47=0,J47=0,K47=0,L47=0,M47=0,N47=0),0,1) -> 0
B48: =B12 ->  | C48: =C12+C24-C36 -> 0 | D48: 0 | E48: 0 | F48: 0 | G48: 0 | H48: 0 | I48: 0 | J48: 0 | K48: 0 | L48: 0 | M48: 0 | N48: 0 | R48: =IF(T12="N/A",0,T12)+IF(T24="N/A",0,T24)-IF(T36="N/A",0,T36) -> 0 | T48: =IF('3. Single-family'!T50="N/A","N/A",'3. Single-family'!T50+IF('4. Multi-family'!R36="N/A",0,'4. Multi-family'!R36)+'2. Census Data'!$E$13) -> N/A | X48: 0
C49: =C13+C25-C37 -> 0 | D49: 0 | E49: 0 | F49: 0 | G49: 0 | H49: 0 | I49: 0 | J49: 0 | K49: 0 | L49: 0 | M49: 0 | N49: 0 | R49: 0 | T49: =IF('3. Single-family'!T51="N/A","N/A",'3. Single-family'!T51+IF('4. Multi-family'!R37="N/A",0,'4. Multi-family'!R37)+'2. Census Data'!$E$13) -> N/A | X49: 0
C50: =C14+C26-C38 -> 0 | D50: 0 | E50: 0 | F50: 0 | G50: 0 | H50: 0 | I50: 0 | J50: 0 | K50: 0 | L50: 0 | M50: 0 | N50: 0 | R50: 0 | T50: =IF('3. Single-family'!T52="N/A","N/A",'3. Single-family'!T52+IF('4. Multi-family'!R38="N/A",0,'4. Multi-family'!R38)+'2. Census Data'!$E$13) -> N/A | X50: 0
C51: =C15+C27-C39 -> 0 | D51: 0 | E51: 0 | F51: 0 | G51: 0 | H51: 0 | I51: 0 | J51: 0 | K51: 0 | L51: 0 | M51: 0 | N51: 0 | R51: 0 | T51: =IF('3. Single-family'!T53="N/A","N/A",'3. Single-family'!T53+IF('4. Multi-family'!R39="N/A",0,'4. Multi-family'!R39)+'2. Census Data'!$E$13) -> N/A | X51: 0
C52: =C16+C28-C40 -> 0 | D52: 0 | E52: 0 | F52: 0 | G52: 0 | H52: 0 | I52: 0 | J52: 0 | K52: 0 | L52: 0 | M52: 0 | N52: 0 | R52: 0 | T52: =IF('3. Single-family'!T54="N/A","N/A",'3. Single-family'!T54+IF('4. Multi-family'!R40="N/A",0,'4. Multi-family'!R40)+'2. Census Data'!$E$13) -> N/A | X52: 0
C53: =C17+C29-C41 -> 0 | D53: 0 | E53: 0 | F53: 0 | G53: 0 | H53: 0 | I53: 0 | J53: 0 | K53: 0 | L53: 0 | M53: 0 | N53: 0 | R53: 0 | T53: =IF('3. Single-family'!T55="N/A","N/A",'3. Single-family'!T55+IF('4. Multi-family'!R41="N/A",0,'4. Multi-family'!R41)+'2. Census Data'!$E$13) -> N/A | X53: 0
B56: Table 7.5 | T56: TABLE 7.14
B57: SYSTEM TOTAL GPCD (Monthly) | S57: Year | T57: SYSTEM TOTAL GPCD
B58: Year | C58: JAN | D58: FEB | E58: MAR | F58: APR | G58: MAY | H58: JUN | I58: JUL | J58: AUG | K58: SEP | L58: OCT | M58: NOV | N58: DEC
B59: =B11 ->  | C59: =IF(OR(C47=0,T47="NA"),"No Data",(IF('1. Instructions and Notations'!$E$38="Cubic Feet",C47*7.48051945,C47)/31)/T47) -> No Data | D59: =IF(OR(D47=0,T47="NA"),"No Data",(IF('1. Instructions and Notations'!$E$38="Cubic Feet",D47*7.48051945,D47)/28)/T47) -> No Data | E59: =IF(OR(E47=0,T47="NA"),"No Data",(IF('1. Instructions and Notations'!$E$38="Cubic Feet",E47*7.48051945,E47)/31)/T47) -> No Data | F59: =IF(OR(F47=0,T47="NA"),"No Data",(IF('1. Instructions and Notations'!$E$38="Cubic Feet",F47*7.48051945,F47)/30)/T47) -> No Data | G59: =IF(OR(G47=0,T47="NA"),"No Data",(IF('1. Instructions and Notations'!$E$38="Cubic Feet",G47*7.48051945,G47)/31)/T47) -> No Data | H59: =IF(OR(H47=0,T47="NA"),"No Data",(IF('1. Instructions and Notations'!$E$38="Cubic Feet",H47*7.48051945,H47)/30)/T47) -> No Data | I59: =IF(OR(I47=0,T47="NA"),"No Data",(IF('1. Instructions and Notations'!$E$38="Cubic Feet",I47*7.48051945,I47)/31)/T47) -> No Data | J59: =IF(OR(J47=0,T47="NA"),"No Data",(IF('1. Instructions and Notations'!$E$38="Cubic Feet",J47*7.48051945,J47)/31)/T47) -> No Data | K59: =IF(OR(K47=0,T47="NA"),"No Data",(IF('1. Instructions and Notations'!$E$38="Cubic Feet",K47*7.48051945,K47)/30)/T47) -> No Data | L59: =IF(OR(L47=0,T47="NA"),"No Data",(IF('1. Instructions and Notations'!$E$38="Cubic Feet",L47*7.48051945,L47)/31)/T47) -> No Data | M59: =IF(OR(M47=0,T47="NA"),"No Data",(IF('1. Instructions and Notations'!$E$38="Cubic Feet",M47*7.48051945,M47)/30)/T47) -> No Data | N59: =IF(OR(N47=0,T47="NA"),"No Data",(IF('1. Instructions and Notations'!$E$38="Cubic Feet",N47*7.48051945,N47)/31)/T47) -> No Data | S59: =B47 ->  | T59: =IF(AND(X47=0,R47=0),"NA",(IF(X47=1,SUM(C47:N47),R47)*IF('1. Instructions and Notations'!$E$38="Cubic Feet",7.48051945,1)/(T47*365))) -> NA
C60: =IF(OR(C48=0,T48="NA"),"No Data",(IF('1. Instructions and Notations'!$E$38="Cubic Feet",C48*7.48051945,C48)/31)/T48) -> No Data | D60: =IF(OR(D48=0,T48="NA"),"No Data",(IF('1. Instructions and Notations'!$E$38="Cubic Feet",D48*7.48051945,D48)/28)/T48) -> No Data | E60: =IF(OR(E48=0,T48="NA"),"No Data",(IF('1. Instructions and Notations'!$E$38="Cubic Feet",E48*7.48051945,E48)/31)/T48) -> No Data | F60: =IF(OR(F48=0,T48="NA"),"No Data",(IF('1. Instructions and Notations'!$E$38="Cubic Feet",F48*7.48051945,F48)/30)/T48) -> No Data | G60: =IF(OR(G48=0,T48="NA"),"No Data",(IF('1. Instructions and Notations'!$E$38="Cubic Feet",G48*7.48051945,G48)/31)/T48) -> No Data | H60: =IF(OR(H48=0,T48="NA"),"No Data",(IF('1. Instructions and Notations'!$E$38="Cubic Feet",H48*7.48051945,H48)/30)/T48) -> No Data | I60: =IF(OR(I48=0,T48="NA"),"No Data",(IF('1. Instructions and Notations'!$E$38="Cubic Feet",I48*7.48051945,I48)/31)/T48) -> No Data | J60: =IF(OR(J48=0,T48="NA"),"No Data",(IF('1. Instructions and Notations'!$E$38="Cubic Feet",J48*7.48051945,J48)/31)/T48) -> No Data | K60: =IF(OR(K48=0,T48="NA"),"No Data",(IF('1. Instructions and Notations'!$E$38="Cubic Feet",K48*7.48051945,K48)/30)/T48) -> No Data | L60: =IF(OR(L48=0,T48="NA"),"No Data",(IF('1. Instructions and Notations'!$E$38="Cubic Feet",L48*7.48051945,L48)/31)/T48) -> No Data | M60: =IF(OR(M48=0,T48="NA"),"No Data",(IF('1. Instructions and Notations'!$E$38="Cubic Feet",M48*7.48051945,M48)/30)/T48) -> No Data | N60: =IF(OR(N48=0,T48="NA"),"No Data",(IF('1. Instructions and Notations'!$E$38="Cubic Feet",N48*7.48051945,N48)/31)/T48) -> No Data | S60: =B48 ->  | T60: =IF(AND(X48=0,R48=0),"NA",(IF(X48=1,SUM(C48:N48),R48)*IF('1. Instructions and Notations'!$E$38="Cubic Feet",7.48051945,1)/(T48*365))) -> NA
C61: =IF(OR(C49=0,T49="NA"),"No Data",(IF('1. Instructions and Notations'!$E$38="Cubic Feet",C49*7.48051945,C49)/31)/T49) -> No Data | D61: =IF(OR(D49=0,T49="NA"),"No Data",(IF('1. Instructions and Notations'!$E$38="Cubic Feet",D49*7.48051945,D49)/28)/T49) -> No Data | E61: =IF(OR(E49=0,T49="NA"),"No Data",(IF('1. Instructions and Notations'!$E$38="Cubic Feet",E49*7.48051945,E49)/31)/T49) -> No Data | F61: =IF(OR(F49=0,T49="NA"),"No Data",(IF('1. Instructions and Notations'!$E$38="Cubic Feet",F49*7.48051945,F49)/30)/T49) -> No Data | G61: =IF(OR(G49=0,T49="NA"),"No Data",(IF('1. Instructions and Notations'!$E$38="Cubic Feet",G49*7.48051945,G49)/31)/T49) -> No Data | H61: =IF(OR(H49=0,T49="NA"),"No Data",(IF('1. Instructions and Notations'!$E$38="Cubic Feet",H49*7.48051945,H49)/30)/T49) -> No Data | I61: =IF(OR(I49=0,T49="NA"),"No Data",(IF('1. Instructions and Notations'!$E$38="Cubic Feet",I49*7.48051945,I49)/31)/T49) -> No Data | J61: =IF(OR(J49=0,T49="NA"),"No Data",(IF('1. Instructions and Notations'!$E$38="Cubic Feet",J49*7.48051945,J49)/31)/T49) -> No Data | K61: =IF(OR(K49=0,T49="NA"),"No Data",(IF('1. Instructions and Notations'!$E$38="Cubic Feet",K49*7.48051945,K49)/30)/T49) -> No Data | L61: =IF(OR(L49=0,T49="NA"),"No Data",(IF('1. Instructions and Notations'!$E$38="Cubic Feet",L49*7.48051945,L49)/31)/T49) -> No Data | M61: =IF(OR(M49=0,T49="NA"),"No Data",(IF('1. Instructions and Notations'!$E$38="Cubic Feet",M49*7.48051945,M49)/30)/T49) -> No Data | N61: =IF(OR(N49=0,T49="NA"),"No Data",(IF('1. Instructions and Notations'!$E$38="Cubic Feet",N49*7.48051945,N49)/31)/T49) -> No Data | T61: =IF(AND(X49=0,R49=0),"NA",(IF(X49=1,SUM(C49:N49),R49)*IF('1. Instructions and Notations'!$E$38="Cubic Feet",7.48051945,1)/(T49*365))) -> NA
C62: =IF(OR(C50=0,T50="NA"),"No Data",(IF('1. Instructions and Notations'!$E$38="Cubic Feet",C50*7.48051945,C50)/31)/T50) -> No Data | D62: =IF(OR(D50=0,T50="NA"),"No Data",(IF('1. Instructions and Notations'!$E$38="Cubic Feet",D50*7.48051945,D50)/28)/T50) -> No Data | E62: =IF(OR(E50=0,T50="NA"),"No Data",(IF('1. Instructions and Notations'!$E$38="Cubic Feet",E50*7.48051945,E50)/31)/T50) -> No Data | F62: =IF(OR(F50=0,T50="NA"),"No Data",(IF('1. Instructions and Notations'!$E$38="Cubic Feet",F50*7.48051945,F50)/30)/T50) -> No Data | G62: =IF(OR(G50=0,T50="NA"),"No Data",(IF('1. Instructions and Notations'!$E$38="Cubic Feet",G50*7.48051945,G50)/31)/T50) -> No Data | H62: =IF(OR(H50=0,T50="NA"),"No Data",(IF('1. Instructions and Notations'!$E$38="Cubic Feet",H50*7.48051945,H50)/30)/T50) -> No Data | I62: =IF(OR(I50=0,T50="NA"),"No Data",(IF('1. Instructions and Notations'!$E$38="Cubic Feet",I50*7.48051945,I50)/31)/T50) -> No Data | J62: =IF(OR(J50=0,T50="NA"),"No Data",(IF('1. Instructions and Notations'!$E$38="Cubic Feet",J50*7.48051945,J50)/31)/T50) -> No Data | K62: =IF(OR(K50=0,T50="NA"),"No Data",(IF('1. Instructions and Notations'!$E$38="Cubic Feet",K50*7.48051945,K50)/30)/T50) -> No Data | L62: =IF(OR(L50=0,T50="NA"),"No Data",(IF('1. Instructions and Notations'!$E$38="Cubic Feet",L50*7.48051945,L50)/31)/T50) -> No Data | M62: =IF(OR(M50=0,T50="NA"),"No Data",(IF('1. Instructions and Notations'!$E$38="Cubic Feet",M50*7.48051945,M50)/30)/T50) -> No Data | N62: =IF(OR(N50=0,T50="NA"),"No Data",(IF('1. Instructions and Notations'!$E$38="Cubic Feet",N50*7.48051945,N50)/31)/T50) -> No Data | T62: =IF(AND(X50=0,R50=0),"NA",(IF(X50=1,SUM(C50:N50),R50)*IF('1. Instructions and Notations'!$E$38="Cubic Feet",7.48051945,1)/(T50*365))) -> NA
C63: =IF(OR(C51=0,T51="NA"),"No Data",(IF('1. Instructions and Notations'!$E$38="Cubic Feet",C51*7.48051945,C51)/31)/T51) -> No Data | D63: =IF(OR(D51=0,T51="NA"),"No Data",(IF('1. Instructions and Notations'!$E$38="Cubic Feet",D51*7.48051945,D51)/28)/T51) -> No Data | E63: =IF(OR(E51=0,T51="NA"),"No Data",(IF('1. Instructions and Notations'!$E$38="Cubic Feet",E51*7.48051945,E51)/31)/T51) -> No Data | F63: =IF(OR(F51=0,T51="NA"),"No Data",(IF('1. Instructions and Notations'!$E$38="Cubic Feet",F51*7.48051945,F51)/30)/T51) -> No Data | G63: =IF(OR(G51=0,T51="NA"),"No Data",(IF('1. Instructions and Notations'!$E$38="Cubic Feet",G51*7.48051945,G51)/31)/T51) -> No Data | H63: =IF(OR(H51=0,T51="NA"),"No Data",(IF('1. Instructions and Notations'!$E$38="Cubic Feet",H51*7.48051945,H51)/30)/T51) -> No Data | I63: =IF(OR(I51=0,T51="NA"),"No Data",(IF('1. Instructions and Notations'!$E$38="Cubic Feet",I51*7.48051945,I51)/31)/T51) -> No Data | J63: =IF(OR(J51=0,T51="NA"),"No Data",(IF('1. Instructions and Notations'!$E$38="Cubic Feet",J51*7.48051945,J51)/31)/T51) -> No Data | K63: =IF(OR(K51=0,T51="NA"),"No Data",(IF('1. Instructions and Notations'!$E$38="Cubic Feet",K51*7.48051945,K51)/30)/T51) -> No Data | L63: =IF(OR(L51=0,T51="NA"),"No Data",(IF('1. Instructions and Notations'!$E$38="Cubic Feet",L51*7.48051945,L51)/31)/T51) -> No Data | M63: =IF(OR(M51=0,T51="NA"),"No Data",(IF('1. Instructions and Notations'!$E$38="Cubic Feet",M51*7.48051945,M51)/30)/T51) -> No Data | N63: =IF(OR(N51=0,T51="NA"),"No Data",(IF('1. Instructions and Notations'!$E$38="Cubic Feet",N51*7.48051945,N51)/31)/T51) -> No Data | T63: =IF(AND(X51=0,R51=0),"NA",(IF(X51=1,SUM(C51:N51),R51)*IF('1. Instructions and Notations'!$E$38="Cubic Feet",7.48051945,1)/(T51*365))) -> NA
C64: =IF(OR(C52=0,T52="NA"),"No Data",(IF('1. Instructions and Notations'!$E$38="Cubic Feet",C52*7.48051945,C52)/31)/T52) -> No Data | D64: =IF(OR(D52=0,T52="NA"),"No Data",(IF('1. Instructions and Notations'!$E$38="Cubic Feet",D52*7.48051945,D52)/28)/T52) -> No Data | E64: =IF(OR(E52=0,T52="NA"),"No Data",(IF('1. Instructions and Notations'!$E$38="Cubic Feet",E52*7.48051945,E52)/31)/T52) -> No Data | F64: =IF(OR(F52=0,T52="NA"),"No Data",(IF('1. Instructions and Notations'!$E$38="Cubic Feet",F52*7.48051945,F52)/30)/T52) -> No Data | G64: =IF(OR(G52=0,T52="NA"),"No Data",(IF('1. Instructions and Notations'!$E$38="Cubic Feet",G52*7.48051945,G52)/31)/T52) -> No Data | H64: =IF(OR(H52=0,T52="NA"),"No Data",(IF('1. Instructions and Notations'!$E$38="Cubic Feet",H52*7.48051945,H52)/30)/T52) -> No Data | I64: =IF(OR(I52=0,T52="NA"),"No Data",(IF('1. Instructions and Notations'!$E$38="Cubic Feet",I52*7.48051945,I52)/31)/T52) -> No Data | J64: =IF(OR(J52=0,T52="NA"),"No Data",(IF('1. Instructions and Notations'!$E$38="Cubic Feet",J52*7.48051945,J52)/31)/T52) -> No Data | K64: =IF(OR(K52=0,T52="NA"),"No Data",(IF('1. Instructions and Notations'!$E$38="Cubic Feet",K52*7.48051945,K52)/30)/T52) -> No Data | L64: =IF(OR(L52=0,T52="NA"),"No Data",(IF('1. Instructions and Notations'!$E$38="Cubic Feet",L52*7.48051945,L52)/31)/T52) -> No Data | M64: =IF(OR(M52=0,T52="NA"),"No Data",(IF('1. Instructions and Notations'!$E$38="Cubic Feet",M52*7.48051945,M52)/30)/T52) -> No Data | N64: =IF(OR(N52=0,T52="NA"),"No Data",(IF('1. Instructions and Notations'!$E$38="Cubic Feet",N52*7.48051945,N52)/31)/T52) -> No Data | T64: =IF(AND(X52=0,R52=0),"NA",(IF(X52=1,SUM(C52:N52),R52)*IF('1. Instructions and Notations'!$E$38="Cubic Feet",7.48051945,1)/(T52*365))) -> NA
C65: =IF(OR(C53=0,T53="NA"),"No Data",(IF('1. Instructions and Notations'!$E$38="Cubic Feet",C53*7.48051945,C53)/31)/T53) -> No Data | D65: =IF(OR(D53=0,T53="NA"),"No Data",(IF('1. Instructions and Notations'!$E$38="Cubic Feet",D53*7.48051945,D53)/28)/T53) -> No Data | E65: =IF(OR(E53=0,T53="NA"),"No Data",(IF('1. Instructions and Notations'!$E$38="Cubic Feet",E53*7.48051945,E53)/31)/T53) -> No Data | F65: =IF(OR(F53=0,T53="NA"),"No Data",(IF('1. Instructions and Notations'!$E$38="Cubic Feet",F53*7.48051945,F53)/30)/T53) -> No Data | G65: =IF(OR(G53=0,T53="NA"),"No Data",(IF('1. Instructions and Notations'!$E$38="Cubic Feet",G53*7.48051945,G53)/31)/T53) -> No Data | H65: =IF(OR(H53=0,T53="NA"),"No Data",(IF('1. Instructions and Notations'!$E$38="Cubic Feet",H53*7.48051945,H53)/30)/T53) -> No Data | I65: =IF(OR(I53=0,T53="NA"),"No Data",(IF('1. Instructions and Notations'!$E$38="Cubic Feet",I53*7.48051945,I53)/31)/T53) -> No Data | J65: =IF(OR(J53=0,T53="NA"),"No Data",(IF('1. Instructions and Notations'!$E$38="Cubic Feet",J53*7.48051945,J53)/31)/T53) -> No Data | K65: =IF(OR(K53=0,T53="NA"),"No Data",(IF('1. Instructions and Notations'!$E$38="Cubic Feet",K53*7.48051945,K53)/30)/T53) -> No Data | L65: =IF(OR(L53=0,T53="NA"),"No Data",(IF('1. Instructions and Notations'!$E$38="Cubic Feet",L53*7.48051945,L53)/31)/T53) -> No Data | M65: =IF(OR(M53=0,T53="NA"),"No Data",(IF('1. Instructions and Notations'!$E$38="Cubic Feet",M53*7.48051945,M53)/30)/T53) -> No Data | N65: =IF(OR(N53=0,T53="NA"),"No Data",(IF('1. Instructions and Notations'!$E$38="Cubic Feet",N53*7.48051945,N53)/31)/T53) -> No Data | T65: =IF(AND(X53=0,R53=0),"NA",(IF(X53=1,SUM(C53:N53),R53)*IF('1. Instructions and Notations'!$E$38="Cubic Feet",7.48051945,1)/(T53*365))) -> NA
B67: COMMENTS:

Sheet 8. Reported Data
B2: 8. SUMMARY GPCD REPORTED DATA | K2: =IF(ISBLANK('1. Instructions and Notations'!$D$28),"",'1. Instructions and Notations'!$D$28) ->  | L2: =IF(ISBLANK('1. Instructions and Notations'!$D$28),"",'1. Instructions and Notations'!$D$28) ->  | M2: =IF(ISBLANK('1. Instructions and Notations'!$D$28),"",'1. Instructions and Notations'!$D$28) -> 
B4: ANNUAL | K4: ='1. Instructions and Notations'!E31 -> 0 | L4: To: | M4: ='1. Instructions and Notations'!I31 -> 
B11: Year | C11: SYSTEM GPCD
B12: ='3. Single-family'!B16 ->  | C12: ='7. Total Diverted'!T59 -> NA
B13: ='3. Single-family'!B17 ->  | C13: ='7. Total Diverted'!T60 -> NA
B14: ='3. Single-family'!B18 ->  | C14: ='7. Total Diverted'!T61 -> NA
B15: ='3. Single-family'!B19 ->  | C15: ='7. Total Diverted'!T62 -> NA
B16: ='3. Single-family'!B20 ->  | C16: ='7. Total Diverted'!T63 -> NA
B17: ='3. Single-family'!B21 ->  | C17: ='7. Total Diverted'!T64 -> NA
B18: ='3. Single-family'!B22 ->  | C18: ='7. Total Diverted'!T65 -> NA
B38: MONTHLY
B42: Month | C42: SFR GPCD
B43: January | C43: ='10. Monthly Performance'!E12 -> 
B44: February | C44: ='10. Monthly Performance'!E13 -> 
B45: March | C45: ='10. Monthly Performance'!E14 -> 
B46: April | C46: ='10. Monthly Performance'!E15 -> 
B47: May | C47: ='10. Monthly Performance'!E16 -> 
B48: June | C48: ='10. Monthly Performance'!E17 -> 
B49: July | C49: ='10. Monthly Performance'!E18 -> 
B50: August | C50: ='10. Monthly Performance'!E19 -> 
B51: September | C51: ='10. Monthly Performance'!E20 -> 
B52: October | C52: ='10. Monthly Performance'!E21 -> 
B53: November | C53: ='10. Monthly Performance'!E22 -> 
B54: December | C54: ='10. Monthly Performance'!E23 -> 
B56: Year | C56: ='10. Monthly Performance'!I4 -> 0
B58: Peak/Ave | C58: =MAX(C43:C54)/AVERAGE(C43:C54) -> 
I60: YEAR | K60: =C56 -> 0
B65: Month | C65: MFR GPCD
B66: January | C66: ='10. Monthly Performance'!F12 -> 
B67: February | C67: ='10. Monthly Performance'!F13 -> 
B68: March | C68: ='10. Monthly Performance'!F14 -> 
B69: April | C69: ='10. Monthly Performance'!F15 -> 
B70: May | C70: ='10. Monthly Performance'!F16 -> 
B71: June | C71: ='10. Monthly Performance'!F17 -> 
B72: July | C72: ='10. Monthly Performance'!F18 -> 
B73: August | C73: ='10. Monthly Performance'!F19 -> 
B74: September | C74: ='10. Monthly Performance'!F20 -> 
B75: October | C75: ='10. Monthly Performance'!F21 -> 
B76: November | C76: ='10. Monthly Performance'!F22 -> 
B77: December | C77: ='10. Monthly Performance'!F23 -> 
B81: Peak/Ave | C81: =MAX(C66:C77)/AVERAGE(C66:C77) -> 
I83: YEAR | K83: =C56 -> 0

Sheet 9. Annual Performance
B2: 9. System Total Annual Reporting Performance
B4: Overall Annual GPCD (based on Total Population)
D6: SFR (System Total) | E6: MFR (System Total) | F6: ICI | G6: Other Metered | H6: Non-Revenue Water | J6: Total Supplied | L6: ="Non-Revenue Volume "&IF('1. Instructions and Notations'!E38="Choose units...","",IF('1. Instructions and Notations'!E38="Gallons (US)","Million ","Thousand ")&'1. Instructions and Notations'!E38) -> Non-Revenue Volume | S6: =D6 -> SFR (System Total) | T6: =E6 -> MFR (System Total) | U6: =F6 -> ICI | V6: =G6 -> Other Metered | W6: =#REF! ->  | X6: =H6 -> Non-Revenue Water
C7: Year | R7: =C9 ->  | S7: =IF($D$8="Yes",D9,"Not Graphed") -> N/A | T7: =IF($E$8="Yes",E9,"Not Graphed") -> N/A | U7: =IF($F$8="Yes",F9,"Not Graphed") -> N/A | V7: =IF(G$8="Yes",G9,"Not Graphed") -> N/A | W7: =IF(#REF!="Yes",#REF!,"Not Graphed") ->  | X7: =IF($H$8="Yes",H9,"Not Graphed") -> 
C8: On Graph? | D8: Yes | E8: Yes | F8: Yes | G8: Yes | H8: Yes | S8: N/A | T8: N/A | U8: N/A | V8: =IF($G$8="Yes",G10,"Not Graphed") -> N/A | W8: =IF(#REF!="Yes",#REF!,"Not Graphed") -> 
C9: ='3. Single-family'!B62 ->  | D9: =IF(OR('3. Single-family'!T16="N/A",'7. Total Diverted'!W11="N/A"),"N/A",'3. Single-family'!T16*IF('1. Instructions and Notations'!$E$38="Cubic Feet",7.48051945,1)/('7. Total Diverted'!W11*365)) -> N/A | E9: =IF('4. Multi-family'!T12="N/A","N/A",'4. Multi-family'!T12*IF('1. Instructions and Notations'!$E$38="Cubic Feet",7.48051945,1)/('7. Total Diverted'!W11*365)) -> N/A | F9: ='5. ICI & Other Metered'!T12 -> N/A | G9: ='5. ICI & Other Metered'!T24 -> N/A | H9: =IF('7. Total Diverted'!T59="N/A","N/A",'7. Total Diverted'!T59-SUM(D9:G9)) ->  | J9: =SUM(D9:H9) ->  | L9: =IF('7. Total Diverted'!R47="N/A","N/A",('7. Total Diverted'!R47-IF('6. Reuse'!T12="N/A",0,'6. Reuse'!T12)-IF('5. ICI & Other Metered'!Y12="N/A",0,'5. ICI & Other Metered'!Y12)-IF('5. ICI & Other Metered'!Y24="N/A",0,'5. ICI & Other Metered'!Y24)-IF('4. Multi-family'!T12="N/A",0,'4. Multi-family'!T12)-IF('3. Single-family'!T16="N/A",0,'3. Single-family'!T16))/IF('1. Instructions and Notations'!$E$38="Gallons (US)",1000000,1000)) -> 0 | S9: N/A | T9: N/A | U9: N/A | V9: N/A | W9: =IF(#REF!="Yes",#REF!,"Not Graphed") -> 
C10: ='3. Single-family'!B63 ->  | D10: =IF(OR('3. Single-family'!T17="N/A",'7. Total Diverted'!W12="N/A"),"N/A",'3. Single-family'!T17/('7. Total Diverted'!W12*365)) -> N/A | E10: =IF('4. Multi-family'!T13="N/A","N/A",'4. Multi-family'!T13/('7. Total Diverted'!W12*365)) -> N/A | F10: ='5. ICI & Other Metered'!T13 -> N/A | G10: ='5. ICI & Other Metered'!T25 -> N/A | H10: =IF('7. Total Diverted'!T60="N/A","N/A",'7. Total Diverted'!T60-SUM(D10:G10)) ->  | J10: =SUM(D10:H10) ->  | L10: =IF('7. Total Diverted'!R48="N/A","N/A",('7. Total Diverted'!R48-IF('6. Reuse'!T13="N/A",0,'6. Reuse'!T13)-IF('5. ICI & Other Metered'!Y13="N/A",0,'5. ICI & Other Metered'!Y13)-IF('5. ICI & Other Metered'!Y25="N/A",0,'5. ICI & Other Metered'!Y25)-IF('4. Multi-family'!T13="N/A",0,'4. Multi-family'!T13)-IF('3. Single-family'!T17="N/A",0,'3. Single-family'!T17))/IF('1. Instructions and Notations'!$E$38="Gallons (US)",1000000,1000)) -> 0 | S10: N/A | T10: N/A | U10: N/A | V10: N/A | W10: =IF(#REF!="Yes",#REF!,"Not Graphed") -> 
C11: ='3. Single-family'!B64 ->  | D11: =IF(OR('3. Single-family'!T18="N/A",'7. Total Diverted'!W13="N/A"),"N/A",'3. Single-family'!T18/('7. Total Diverted'!W13*365)) -> N/A | E11: =IF('4. Multi-family'!T14="N/A","N/A",'4. Multi-family'!T14/('7. Total Diverted'!W13*365)) -> N/A | F11: ='5. ICI & Other Metered'!T14 -> N/A | G11: ='5. ICI & Other Metered'!T26 -> N/A | H11: =IF('7. Total Diverted'!T61="N/A","N/A",'7. Total Diverted'!T61-SUM(D11:G11)) ->  | L11: =IF('7. Total Diverted'!R49="N/A","N/A",('7. Total Diverted'!R49-IF('6. Reuse'!T14="N/A",0,'6. Reuse'!T14)-IF('5. ICI & Other Metered'!Y14="N/A",0,'5. ICI & Other Metered'!Y14)-IF('5. ICI & Other Metered'!Y26="N/A",0,'5. ICI & Other Metered'!Y26)-IF('4. Multi-family'!T14="N/A",0,'4. Multi-family'!T14)-IF('3. Single-family'!T18="N/A",0,'3. Single-family'!T18))/IF('1. Instructions and Notations'!$E$38="Gallons (US)",1000000,1000)) -> 0 | S11: N/A | T11: N/A | U11: N/A | V11: N/A | W11: =IF(#REF!="Yes",#REF!,"Not Graphed") -> 
C12: ='3. Single-family'!B65 ->  | D12: =IF(OR('3. Single-family'!T19="N/A",'7. Total Diverted'!W14="N/A"),"N/A",'3. Single-family'!T19/('7. Total Diverted'!W14*365)) -> N/A | E12: =IF('4. Multi-family'!T15="N/A","N/A",'4. Multi-family'!T15/('7. Total Diverted'!W14*365)) -> N/A | F12: ='5. ICI & Other Metered'!T15 -> N/A | G12: ='5. ICI & Other Metered'!T27 -> N/A | H12: =IF('7. Total Diverted'!T62="N/A","N/A",'7. Total Diverted'!T62-SUM(D12:G12)) ->  | L12: =IF('7. Total Diverted'!R50="N/A","N/A",('7. Total Diverted'!R50-IF('6. Reuse'!T15="N/A",0,'6. Reuse'!T15)-IF('5. ICI & Other Metered'!Y15="N/A",0,'5. ICI & Other Metered'!Y15)-IF('5. ICI & Other Metered'!Y27="N/A",0,'5. ICI & Other Metered'!Y27)-IF('4. Multi-family'!T15="N/A",0,'4. Multi-family'!T15)-IF('3. Single-family'!T19="N/A",0,'3. Single-family'!T19))/IF('1. Instructions and Notations'!$E$38="Gallons (US)",1000000,1000)) -> 0 | S12: N/A | T12: N/A | U12: N/A | V12: N/A | W12: =IF(#REF!="Yes",#REF!,"Not Graphed") -> 
C13: ='3. Single-family'!B66 ->  | D13: =IF(OR('3. Single-family'!T20="N/A",'7. Total Diverted'!W15="N/A"),"N/A",'3. Single-family'!T20/('7. Total Diverted'!W15*365)) -> N/A | E13: =IF('4. Multi-family'!T16="N/A","N/A",'4. Multi-family'!T16/('7. Total Diverted'!W15*365)) -> N/A | F13: ='5. ICI & Other Metered'!T16 -> N/A | G13: ='5. ICI & Other Metered'!T28 -> N/A | H13: =IF('7. Total Diverted'!T63="N/A","N/A",'7. Total Diverted'!T63-SUM(D13:G13)) ->  | L13: =IF('7. Total Diverted'!R51="N/A","N/A",('7. Total Diverted'!R51-IF('6. Reuse'!T16="N/A",0,'6. Reuse'!T16)-IF('5. ICI & Other Metered'!Y16="N/A",0,'5. ICI & Other Metered'!Y16)-IF('5. ICI & Other Metered'!Y28="N/A",0,'5. ICI & Other Metered'!Y28)-IF('4. Multi-family'!T16="N/A",0,'4. Multi-family'!T16)-IF('3. Single-family'!T20="N/A",0,'3. Single-family'!T20))/IF('1. Instructions and Notations'!$E$38="Gallons (US)",1000000,1000)) -> 0 | S13: N/A | T13: N/A | U13: N/A | V13: N/A | W13: =IF(#REF!="Yes",#REF!,"Not Graphed") -> 
C14: ='3. Single-family'!B67 ->  | D14: =IF(OR('3. Single-family'!T21="N/A",'7. Total Diverted'!W16="N/A"),"N/A",'3. Single-family'!T21/('7. Total Diverted'!W16*365)) -> N/A | E14: =IF('4. Multi-family'!T17="N/A","N/A",'4. Multi-family'!T17/('7. Total Diverted'!W16*365)) -> N/A | F14: ='5. ICI & Other Metered'!T17 -> N/A | G14: ='5. ICI & Other Metered'!T29 -> N/A | H14: =IF('7. Total Diverted'!T64="N/A","N/A",'7. Total Diverted'!T64-SUM(D14:G14)) ->  | L14: =IF('7. Total Diverted'!R52="N/A","N/A",('7. Total Diverted'!R52-IF('6. Reuse'!T17="N/A",0,'6. Reuse'!T17)-IF('5. ICI & Other Metered'!Y17="N/A",0,'5. ICI & Other Metered'!Y17)-IF('5. ICI & Other Metered'!Y29="N/A",0,'5. ICI & Other Metered'!Y29)-IF('4. Multi-family'!T17="N/A",0,'4. Multi-family'!T17)-IF('3. Single-family'!T21="N/A",0,'3. Single-family'!T21))/IF('1. Instructions and Notations'!$E$38="Gallons (US)",1000000,1000)) -> 0
C15: ='3. Single-family'!B68 ->  | D15: =IF(OR('3. Single-family'!T22="N/A",'7. Total Diverted'!W17="N/A"),"N/A",'3. Single-family'!T22/('7. Total Diverted'!W17*365)) -> N/A | E15: =IF('4. Multi-family'!T18="N/A","N/A",'4. Multi-family'!T18/('7. Total Diverted'!W17*365)) -> N/A | F15: ='5. ICI & Other Metered'!T18 -> N/A | G15: ='5. ICI & Other Metered'!T30 -> N/A | H15: =IF('7. Total Diverted'!T65="N/A","N/A",'7. Total Diverted'!T65-SUM(D15:G15)) ->  | L15: =IF('7. Total Diverted'!R53="N/A","N/A",('7. Total Diverted'!R53-IF('6. Reuse'!T18="N/A",0,'6. Reuse'!T18)-IF('5. ICI & Other Metered'!Y18="N/A",0,'5. ICI & Other Metered'!Y18)-IF('5. ICI & Other Metered'!Y30="N/A",0,'5. ICI & Other Metered'!Y30)-IF('4. Multi-family'!T18="N/A",0,'4. Multi-family'!T18)-IF('3. Single-family'!T22="N/A",0,'3. Single-family'!T22))/IF('1. Instructions and Notations'!$E$38="Gallons (US)",1000000,1000)) -> 0
AA16: Yes
AA17: No
C18: =IF(ISBLANK('1. Instructions and Notations'!$D$28),"",'1. Instructions and Notations'!$D$28) -> 
C20: ='1. Instructions and Notations'!E31 -> 0 | E20: to | F20: ='1. Instructions and Notations'!I31 -> 

Sheet 10. Monthly Performance
B2: 10. Monthly Reporting Performance
C4: Choose Year for Monthly Analysis | L4: ↓
C6: Choose Sector | E6: Single-Family Residential
B7: Monthly GPCD
E9: Single-Family Residential | F9: Multi-Family Residential | G9: ICI | H9: Other Metered | I9: Non-Revenue | L9: Total of Sectors | O9: =E9 -> Single-Family Residential | P9: =F9 -> Multi-Family Residential | Q9: =G9 -> ICI | R9: =H9 -> Other Metered | S9: =#REF! ->  | T9: =I9 -> Non-Revenue
D10: Month | E10: GPCD | F10: GPCD | G10: GPCD | H10: GPCD | I10: GPCD | N10: January | O10: =IF($E$6="Single-Family Residential",E12,"") ->  | P10: =IF($E$6="Multi-Family Residential",F12,"") ->  | Q10: =IF($E$6="ICI",G12,"") ->  | R10: =IF($E$6="Other Metered",H12,"") ->  | S10: =IF($E$6="Reuse",#REF!,"") ->  | T10: =IF($E$6="Non-Revenue",I12,"") ->  | Y10: Single-Family Residential | Z10: ='3. Single-family'!B16 -> 
N11: February | S11: =IF($E$6="Reuse",#REF!,"") ->  | Y11: Multi-Family Residential | Z11: ='3. Single-family'!B17 -> 
D12: JAN | E12: =VLOOKUP($I$4,'3. Single-family'!$B$61:$N$68,ROW()-10,FALSE) ->  | F12: =VLOOKUP($I$4,'4. Multi-family'!$B$47:$N$54,ROW()-10,FALSE) ->  | G12: =VLOOKUP($I$4,'5. ICI & Other Metered'!$B$11:$N$18,ROW()-10,FALSE)/M12/VLOOKUP($I$4,'7. Total Diverted'!$B$10:$W$17,22,FALSE) ->  | H12: =VLOOKUP($I$4,'5. ICI & Other Metered'!$B$23:$N$30,ROW()-10,FALSE)/M12/VLOOKUP($I$4,'7. Total Diverted'!$B$10:$W$17,22,FALSE) ->  | I12: =(VLOOKUP($I$4,'7. Total Diverted'!$B$46:$N$53,ROW()-10,FALSE)-(VLOOKUP($I$4,'3. Single-family'!$B$15:$N$22,ROW()-10,FALSE)+VLOOKUP($I$4,'4. Multi-family'!$B$11:$N$18,ROW()-10,FALSE)+VLOOKUP($I$4,'5. ICI & Other Metered'!$B$11:$N$18,ROW()-10,FALSE)+VLOOKUP($I$4,'5. ICI & Other Metered'!$B$23:$N$30,ROW()-10,FALSE)))/M12/VLOOKUP($I$4,'7. Total Diverted'!$B$10:$W$17,22,FALSE) ->  | L12: =SUM(E12:I12) ->  | M12: 31 | N12: March | S12: =IF($E$6="Reuse",#REF!,"") ->  | V12: Yes | Y12: ICI | Z12: ='3. Single-family'!B18 -> 
D13: FEB | E13: =VLOOKUP($I$4,'3. Single-family'!$B$61:$N$68,ROW()-10,FALSE) ->  | F13: =VLOOKUP($I$4,'4. Multi-family'!$B$47:$N$54,ROW()-10,FALSE) ->  | G13: =VLOOKUP($I$4,'5. ICI & Other Metered'!$B$11:$N$18,ROW()-10,FALSE)/M13/VLOOKUP($I$4,'7. Total Diverted'!$B$10:$W$17,22,FALSE) ->  | H13: =VLOOKUP($I$4,'5. ICI & Other Metered'!$B$23:$N$30,ROW()-10,FALSE)/M13/VLOOKUP($I$4,'7. Total Diverted'!$B$10:$W$17,22,FALSE) ->  | I13: =(VLOOKUP($I$4,'7. Total Diverted'!$B$46:$N$53,ROW()-10,FALSE)-(VLOOKUP($I$4,'3. Single-family'!$B$15:$N$22,ROW()-10,FALSE)+VLOOKUP($I$4,'4. Multi-family'!$B$11:$N$18,ROW()-10,FALSE)+VLOOKUP($I$4,'5. ICI & Other Metered'!$B$11:$N$18,ROW()-10,FALSE)+VLOOKUP($I$4,'5. ICI & Other Metered'!$B$23:$N$30,ROW()-10,FALSE)))/M13/VLOOKUP($I$4,'7. Total Diverted'!$B$10:$W$17,22,FALSE) ->  | M13: 28 | N13: April | S13: =IF($E$6="Reuse",#REF!,"") ->  | V13: No | Y13: Other Metered | Z13: ='3. Single-family'!B19 -> 
D14: MAR | E14: =VLOOKUP($I$4,'3. Single-family'!$B$61:$N$68,ROW()-10,FALSE) ->  | F14: =VLOOKUP($I$4,'4. Multi-family'!$B$47:$N$54,ROW()-10,FALSE) ->  | G14: =VLOOKUP($I$4,'5. ICI & Other Metered'!$B$11:$N$18,ROW()-10,FALSE)/M14/VLOOKUP($I$4,'7. Total Diverted'!$B$10:$W$17,22,FALSE) ->  | H14: =VLOOKUP($I$4,'5. ICI & Other Metered'!$B$23:$N$30,ROW()-10,FALSE)/M14/VLOOKUP($I$4,'7. Total Diverted'!$B$10:$W$17,22,FALSE) ->  | I14: =(VLOOKUP($I$4,'7. Total Diverted'!$B$46:$N$53,ROW()-10,FALSE)-(VLOOKUP($I$4,'3. Single-family'!$B$15:$N$22,ROW()-10,FALSE)+VLOOKUP($I$4,'4. Multi-family'!$B$11:$N$18,ROW()-10,FALSE)+VLOOKUP($I$4,'5. ICI & Other Metered'!$B$11:$N$18,ROW()-10,FALSE)+VLOOKUP($I$4,'5. ICI & Other Metered'!$B$23:$N$30,ROW()-10,FALSE)))/M14/VLOOKUP($I$4,'7. Total Diverted'!$B$10:$W$17,22,FALSE) ->  | M14: 31 | N14: May | S14: =IF($E$6="Reuse",#REF!,"") ->  | Y14: Reuse | Z14: ='3. Single-family'!B20 -> 
D15: APR | E15: =VLOOKUP($I$4,'3. Single-family'!$B$61:$N$68,ROW()-10,FALSE) ->  | F15: =VLOOKUP($I$4,'4. Multi-family'!$B$47:$N$54,ROW()-10,FALSE) ->  | G15: =VLOOKUP($I$4,'5. ICI & Other Metered'!$B$11:$N$18,ROW()-10,FALSE)/M15/VLOOKUP($I$4,'7. Total Diverted'!$B$10:$W$17,22,FALSE) ->  | H15: =VLOOKUP($I$4,'5. ICI & Other Metered'!$B$23:$N$30,ROW()-10,FALSE)/M15/VLOOKUP($I$4,'7. Total Diverted'!$B$10:$W$17,22,FALSE) ->  | I15: =(VLOOKUP($I$4,'7. Total Diverted'!$B$46:$N$53,ROW()-10,FALSE)-(VLOOKUP($I$4,'3. Single-family'!$B$15:$N$22,ROW()-10,FALSE)+VLOOKUP($I$4,'4. Multi-family'!$B$11:$N$18,ROW()-10,FALSE)+VLOOKUP($I$4,'5. ICI & Other Metered'!$B$11:$N$18,ROW()-10,FALSE)+VLOOKUP($I$4,'5. ICI & Other Metered'!$B$23:$N$30,ROW()-10,FALSE)))/M15/VLOOKUP($I$4,'7. Total Diverted'!$B$10:$W$17,22,FALSE) ->  | M15: 30 | N15: June | S15: =IF($E$6="Reuse",#REF!,"") ->  | Y15: Non-Revenue | Z15: ='3. Single-family'!B21 -> 
D16: MAY | E16: =VLOOKUP($I$4,'3. Single-family'!$B$61:$N$68,ROW()-10,FALSE) ->  | F16: =VLOOKUP($I$4,'4. Multi-family'!$B$47:$N$54,ROW()-10,FALSE) ->  | G16: =VLOOKUP($I$4,'5. ICI & Other Metered'!$B$11:$N$18,ROW()-10,FALSE)/M16/VLOOKUP($I$4,'7. Total Diverted'!$B$10:$W$17,22,FALSE) ->  | H16: =VLOOKUP($I$4,'5. ICI & Other Metered'!$B$23:$N$30,ROW()-10,FALSE)/M16/VLOOKUP($I$4,'7. Total Diverted'!$B$10:$W$17,22,FALSE) ->  | I16: =(VLOOKUP($I$4,'7. Total Diverted'!$B$46:$N$53,ROW()-10,FALSE)-(VLOOKUP($I$4,'3. Single-family'!$B$15:$N$22,ROW()-10,FALSE)+VLOOKUP($I$4,'4. Multi-family'!$B$11:$N$18,ROW()-10,FALSE)+VLOOKUP($I$4,'5. ICI & Other Metered'!$B$11:$N$18,ROW()-10,FALSE)+VLOOKUP($I$4,'5. ICI & Other Metered'!$B$23:$N$30,ROW()-10,FALSE)))/M16/VLOOKUP($I$4,'7. Total Diverted'!$B$10:$W$17,22,FALSE) ->  | M16: 31 | N16: July | S16: =IF($E$6="Reuse",#REF!,"") ->  | Z16: ='3. Single-family'!B22 -> 
D17: JUN | E17: =VLOOKUP($I$4,'3. Single-family'!$B$61:$N$68,ROW()-10,FALSE) ->  | F17: =VLOOKUP($I$4,'4. Multi-family'!$B$47:$N$54,ROW()-10,FALSE) ->  | G17: =VLOOKUP($I$4,'5. ICI & Other Metered'!$B$11:$N$18,ROW()-10,FALSE)/M17/VLOOKUP($I$4,'7. Total Diverted'!$B$10:$W$17,22,FALSE) ->  | H17: =VLOOKUP($I$4,'5. ICI & Other Metered'!$B$23:$N$30,ROW()-10,FALSE)/M17/VLOOKUP($I$4,'7. Total Diverted'!$B$10:$W$17,22,FALSE) ->  | I17: =(VLOOKUP($I$4,'7. Total Diverted'!$B$46:$N$53,ROW()-10,FALSE)-(VLOOKUP($I$4,'3. Single-family'!$B$15:$N$22,ROW()-10,FALSE)+VLOOKUP($I$4,'4. Multi-family'!$B$11:$N$18,ROW()-10,FALSE)+VLOOKUP($I$4,'5. ICI & Other Metered'!$B$11:$N$18,ROW()-10,FALSE)+VLOOKUP($I$4,'5. ICI & Other Metered'!$B$23:$N$30,ROW()-10,FALSE)))/M17/VLOOKUP($I$4,'7. Total Diverted'!$B$10:$W$17,22,FALSE) ->  | M17: 30 | N17: August | S17: =IF($E$6="Reuse",#REF!,"") -> 
D18: JUL | E18: =VLOOKUP($I$4,'3. Single-family'!$B$61:$N$68,ROW()-10,FALSE) ->  | F18: =VLOOKUP($I$4,'4. Multi-family'!$B$47:$N$54,ROW()-10,FALSE) ->  | G18: =VLOOKUP($I$4,'5. ICI & Other Metered'!$B$11:$N$18,ROW()-10,FALSE)/M18/VLOOKUP($I$4,'7. Total Diverted'!$B$10:$W$17,22,FALSE) ->  | H18: =VLOOKUP($I$4,'5. ICI & Other Metered'!$B$23:$N$30,ROW()-10,FALSE)/M18/VLOOKUP($I$4,'7. Total Diverted'!$B$10:$W$17,22,FALSE) ->  | I18: =(VLOOKUP($I$4,'7. Total Diverted'!$B$46:$N$53,ROW()-10,FALSE)-(VLOOKUP($I$4,'3. Single-family'!$B$15:$N$22,ROW()-10,FALSE)+VLOOKUP($I$4,'4. Multi-family'!$B$11:$N$18,ROW()-10,FALSE)+VLOOKUP($I$4,'5. ICI & Other Metered'!$B$11:$N$18,ROW()-10,FALSE)+VLOOKUP($I$4,'5. ICI & Other Metered'!$B$23:$N$30,ROW()-10,FALSE)))/M18/VLOOKUP($I$4,'7. Total Diverted'!$B$10:$W$17,22,FALSE) ->  | M18: 31 | N18: September | S18: =IF($E$6="Reuse",#REF!,"") -> 
D19: AUG | E19: =VLOOKUP($I$4,'3. Single-family'!$B$61:$N$68,ROW()-10,FALSE) ->  | F19: =VLOOKUP($I$4,'4. Multi-family'!$B$47:$N$54,ROW()-10,FALSE) ->  | G19: =VLOOKUP($I$4,'5. ICI & Other Metered'!$B$11:$N$18,ROW()-10,FALSE)/M19/VLOOKUP($I$4,'7. Total Diverted'!$B$10:$W$17,22,FALSE) ->  | H19: =VLOOKUP($I$4,'5. ICI & Other Metered'!$B$23:$N$30,ROW()-10,FALSE)/M19/VLOOKUP($I$4,'7. Total Diverted'!$B$10:$W$17,22,FALSE) ->  | I19: =(VLOOKUP($I$4,'7. Total Diverted'!$B$46:$N$53,ROW()-10,FALSE)-(VLOOKUP($I$4,'3. Single-family'!$B$15:$N$22,ROW()-10,FALSE)+VLOOKUP($I$4,'4. Multi-family'!$B$11:$N$18,ROW()-10,FALSE)+VLOOKUP($I$4,'5. ICI & Other Metered'!$B$11:$N$18,ROW()-10,FALSE)+VLOOKUP($I$4,'5. ICI & Other Metered'!$B$23:$N$30,ROW()-10,FALSE)))/M19/VLOOKUP($I$4,'7. Total Diverted'!$B$10:$W$17,22,FALSE) ->  | M19: 31 | N19: October | S19: =IF($E$6="Reuse",#REF!,"") -> 
D20: SEP | E20: =VLOOKUP($I$4,'3. Single-family'!$B$61:$N$68,ROW()-10,FALSE) ->  | F20: =VLOOKUP($I$4,'4. Multi-family'!$B$47:$N$54,ROW()-10,FALSE) ->  | G20: =VLOOKUP($I$4,'5. ICI & Other Metered'!$B$11:$N$18,ROW()-10,FALSE)/M20/VLOOKUP($I$4,'7. Total Diverted'!$B$10:$W$17,22,FALSE) ->  | H20: =VLOOKUP($I$4,'5. ICI & Other Metered'!$B$23:$N$30,ROW()-10,FALSE)/M20/VLOOKUP($I$4,'7. Total Diverted'!$B$10:$W$17,22,FALSE) ->  | I20: =(VLOOKUP($I$4,'7. Total Diverted'!$B$46:$N$53,ROW()-10,FALSE)-(VLOOKUP($I$4,'3. Single-family'!$B$15:$N$22,ROW()-10,FALSE)+VLOOKUP($I$4,'4. Multi-family'!$B$11:$N$18,ROW()-10,FALSE)+VLOOKUP($I$4,'5. ICI & Other Metered'!$B$11:$N$18,ROW()-10,FALSE)+VLOOKUP($I$4,'5. ICI & Other Metered'!$B$23:$N$30,ROW()-10,FALSE)))/M20/VLOOKUP($I$4,'7. Total Diverted'!$B$10:$W$17,22,FALSE) ->  | M20: 30 | N20: November | S20: =IF($E$6="Reuse",#REF!,"") -> 
D21: OCT | E21: =VLOOKUP($I$4,'3. Single-family'!$B$61:$N$68,ROW()-10,FALSE) ->  | F21: =VLOOKUP($I$4,'4. Multi-family'!$B$47:$N$54,ROW()-10,FALSE) ->  | G21: =VLOOKUP($I$4,'5. ICI & Other Metered'!$B$11:$N$18,ROW()-10,FALSE)/M21/VLOOKUP($I$4,'7. Total Diverted'!$B$10:$W$17,22,FALSE) ->  | H21: =VLOOKUP($I$4,'5. ICI & Other Metered'!$B$23:$N$30,ROW()-10,FALSE)/M21/VLOOKUP($I$4,'7. Total Diverted'!$B$10:$W$17,22,FALSE) ->  | I21: =(VLOOKUP($I$4,'7. Total Diverted'!$B$46:$N$53,ROW()-10,FALSE)-(VLOOKUP($I$4,'3. Single-family'!$B$15:$N$22,ROW()-10,FALSE)+VLOOKUP($I$4,'4. Multi-family'!$B$11:$N$18,ROW()-10,FALSE)+VLOOKUP($I$4,'5. ICI & Other Metered'!$B$11:$N$18,ROW()-10,FALSE)+VLOOKUP($I$4,'5. ICI & Other Metered'!$B$23:$N$30,ROW()-10,FALSE)))/M21/VLOOKUP($I$4,'7. Total Diverted'!$B$10:$W$17,22,FALSE) ->  | M21: 31 | N21: December | S21: =IF($E$6="Reuse",#REF!,"") -> 
D22: NOV | E22: =VLOOKUP($I$4,'3. Single-family'!$B$61:$N$68,ROW()-10,FALSE) ->  | F22: =VLOOKUP($I$4,'4. Multi-family'!$B$47:$N$54,ROW()-10,FALSE) ->  | G22: =VLOOKUP($I$4,'5. ICI & Other Metered'!$B$11:$N$18,ROW()-10,FALSE)/M22/VLOOKUP($I$4,'7. Total Diverted'!$B$10:$W$17,22,FALSE) ->  | H22: =VLOOKUP($I$4,'5. ICI & Other Metered'!$B$23:$N$30,ROW()-10,FALSE)/M22/VLOOKUP($I$4,'7. Total Diverted'!$B$10:$W$17,22,FALSE) ->  | I22: =(VLOOKUP($I$4,'7. Total Diverted'!$B$46:$N$53,ROW()-10,FALSE)-(VLOOKUP($I$4,'3. Single-family'!$B$15:$N$22,ROW()-10,FALSE)+VLOOKUP($I$4,'4. Multi-family'!$B$11:$N$18,ROW()-10,FALSE)+VLOOKUP($I$4,'5. ICI & Other Metered'!$B$11:$N$18,ROW()-10,FALSE)+VLOOKUP($I$4,'5. ICI & Other Metered'!$B$23:$N$30,ROW()-10,FALSE)))/M22/VLOOKUP($I$4,'7. Total Diverted'!$B$10:$W$17,22,FALSE) ->  | M22: 30
D23: DEC | E23: =VLOOKUP($I$4,'3. Single-family'!$B$61:$N$68,ROW()-10,FALSE) ->  | F23: =VLOOKUP($I$4,'4. Multi-family'!$B$47:$N$54,ROW()-10,FALSE) ->  | G23: =VLOOKUP($I$4,'5. ICI & Other Metered'!$B$11:$N$18,ROW()-10,FALSE)/M23/VLOOKUP($I$4,'7. Total Diverted'!$B$10:$W$17,22,FALSE) ->  | H23: =VLOOKUP($I$4,'5. ICI & Other Metered'!$B$23:$N$30,ROW()-10,FALSE)/M23/VLOOKUP($I$4,'7. Total Diverted'!$B$10:$W$17,22,FALSE) ->  | I23: =(VLOOKUP($I$4,'7. Total Diverted'!$B$46:$N$53,ROW()-10,FALSE)-(VLOOKUP($I$4,'3. Single-family'!$B$15:$N$22,ROW()-10,FALSE)+VLOOKUP($I$4,'4. Multi-family'!$B$11:$N$18,ROW()-10,FALSE)+VLOOKUP($I$4,'5. ICI & Other Metered'!$B$11:$N$18,ROW()-10,FALSE)+VLOOKUP($I$4,'5. ICI & Other Metered'!$B$23:$N$30,ROW()-10,FALSE)))/M23/VLOOKUP($I$4,'7. Total Diverted'!$B$10:$W$17,22,FALSE) ->  | M23: 31
E26: =IF(ISBLANK('1. Instructions and Notations'!$D$28),"",'1. Instructions and Notations'!$D$28) ->  | F26: =IF(ISBLANK('1. Instructions and Notations'!$D$28),"",'1. Instructions and Notations'!$D$28) ->  | G26: =IF(ISBLANK('1. Instructions and Notations'!$D$28),"",'1. Instructions and Notations'!$D$28) -> 
E28: ='1. Instructions and Notations'!E31 -> 0 | G28: to | H28: ='1. Instructions and Notations'!I31 -> 

Sheet 11. Definition
C2: NMOSE GPCD Software: Definitions
C4: Item Name | E4: Description
C6: Active Connections | E6: All active Single Family Residential connections within the utility. Connections that are not occupied or show zero activity are not counted in this category.
C8: Annual Multi-Family Residential GPCD Calculation | E8: The MFR GPCD is Annual MF Calculation (4.6) divided by the annual MFR Population (4.9).
C10: Annual Single Family Residential GPCD Calculation | E10: The SFR GPCD is Annual SFR Calculation (3.7) divided by the annual SFR Population average (3.13).
C12: Billed Water Consumption (Multi-Family Residential) | E12: This is the total billed consumption for Multi-Family Residential uses only. Provide the amount of water used (gallons) for multi-family residential connections by month in Table 4.1, or by year in Table 4.5. If multi-family residential is not available as a separate category, provide an explanation in the Comments Box and include usage in the Industrial, Commercial and Institutional Table 5.1 or Other Metered Table 5.2 on Sheet 5.
C14: Billed Water Consumption (Single-Family Residential) | E14: This is the total billed consumption for Single-Family residential uses only.
C16: Calculated Growth Rate | E16: The calculated growth rate is a calculation developed to normalize the data to the growth in the utility. The growth is determined by evaluating the percentage change in the number of connections within the utility on an annual basis, provided in Table 3.9 Average Connections Calculated. If there are no more than one years’ data, then this will not be calculated. This Table is for the utilities use in checking the growth percentage calculated against their own estimates. It is also used in Table 4.8 Number of (Multi-Family) Units if only the current number of multi-family units can be provided.
C18: Census Data | E18: The Census data is used to standardize the calculation of population by utilizing numbers of people per household. It also records information on the vacancy rate within each city which enables calculation of the number of households actually being used. Appendix A and the Definition within the Calculator (Sheet 11) describe how to find and record the relevant data.
C20: Converter | E20: The user may develop a GPCD Analysis based on one of two input unit selections: 1) Gallons (US) 2) Cubic feet Please select the units from the instructions worksheet. An interactive unit converter is also provided below. Input volume in first box below and select units to be converted.
E21: 1 | G21: Gallons (US) | H21: = | I21: =IF(G21="Cubic feet",E21*7.48051945,E21/7.48051945) -> 0.1336805561 | J21: =IF(G21="Gallons (US)","Cubic Feet","Gallons") -> Cubic Feet
C24: Exported Water | E24: Enter all water exported from the system. This will include any pass-through arrangements or wholesale contracts to other drinking water suppliers, where the reporting utility is the water rights permit holder.
C26: GPCD | E26: Gallons per capita per day (GPCD) is a method utilized internationally to measure water use by drinking water suppliers. It is most commonly used to describe historical and current water uses, providing a baseline of water use that is not as susceptible to changes in population. GPCD is also used for planning purposes, allowing estimates of future demand requirements based on localized population projections. More sophisticated planning efforts utilize GPCD to determine conservation potential, track the results of program implementation, and calculate projections based on conservation adjusted GPCD.
C28: General Information | E28: The white boxes are data entry cells and are used for inputting data. All other cells except dropdown menus (purple boxes) are protected for the user’s benefit to stop any overwriting of formulas and calculated cells. The green boxes are values that have been calculated based on inputs.
C30: Graphing Results | E30: Datasets will automatically be graphed when using the graphing data tools in both the Annual and Monthly Performance worksheets. For example, choosing the year and the use sector from the purple dropdown boxes will allow these variables to be graphed.
C32: Imported Water | E32: Enter all water imported from other systems. This will include any retail contracts with other drinking water suppliers where this utility purchases water from another utility and is not the permit holder.
C34: Inactive and Zero Connections | E34: The inactive and zero connections are recorded in Table 3.3 so that unused single family residential connections will be removed from the calculation of single family population when Total Units is chosen from the drop down list in Table 3.2.
C36: Industrial, Commercial and Institutional (ICI) | E36: Includes industrial properties, such as manufacturing, commercial properties such as restaurants, shopping malls, and institutional customers such as schools, universities and prisons.
C38: Multi-Family Residential Connections | E38: A multifamily unit is living units in an apartment complex, duplexes, triplexes, trailer parks, and condo or town houses that have multiple units serviced by a single connection. They are not counted in the single-family residential category.
C40: Multi-Family Residential Population | E40: Multi-family population is calculated from number of MFR units in the Annual Unit Calculation (4.8) minus Vacant MFR Connections (4.10). That number is then multiplied by Average Size of Occupied Housing Units from the US Census (2.1).
C42: Non-Revenue Water | E42: Non-revenue water is all the water the utility diverts and/or produces, but does not get paid for. Non-revenue water includes apparent losses such as meter inaccuracies, theft, and database errors, real losses such as leaks. It also includes unbilled authorized uses such as fire-fighting, line flushing and disinfection. The Calculator does not provide data entry for unmetered billed water. This might include bulk sales or monthly fees not based on usage. The non-revenue water in the Calculator includes all water that is not metered.
C44: Other Metered | E44: All categories of billed metered use that is not otherwise classified in SFR, MFR or ICI. This provides the user the opportunity to track alternative categories. Examples included irrigation only, stand pipes, and fire hydrant/construction meters. Everything not included in SFR, MFR, ICI or Other will end up in non-revenue water.
C46: Reuse | E46: Reuse, or Recycled water is former wastewater (sewage) that has been treated to remove solids and certain impurities and reused by a water supplier. In most locations, it is only intended to be used for nonpotable uses, such as irrigation, and dust control. This data is not included in any other calculation. It is provided as a tracking tool for the user.
C48: Single Family Residential Connections | E48: SFR Connection is a stand alone or independently metered housing unit. The number used in the Calculator can be Total Connections or Active Connections only.
C50: Single Family Residential Population | E50: Single Family Population (3.13) is calculated from number of active connections times size of average household (3.12). It can be calculated monthly or annually depending on the data provided. If Total Connections is chosen (3.2), then inactive connections are subtracted prior to multiplying by size of average household (3.12). If Active Connections is chosen (3.2), then number of connections are multiplied by size of average household (3.12) without any subtractions.
C52: Size of Average Household | E52: This Table is determined from the US Census data in Table 2.1, Sheet 2. This data is used to determine a total single-family population and total multi-family population for both the monthly and annual data (Tables 3.4 and 3.13, Tables 4.3 and 4.9 respectively).
C54: Total Connections | E54: All active and inactive Single Family Residential connections within the utility.
C56: System Total GPCD | E56: The System Total GPCD is calculated by dividing the quantity of Total Water Diverted (plus imports minus exports) by the System Total Population
C58: Total Population | E58: The Total Population estimate is the sum of the single-family population + multi-family population + group quarters population.
C60: Vacant Single-Family Residential Connections | E60: This is a calculated field using either i) the average of the monthly vacant SFR connections, if monthly data are available or ii) an estimated value based on the Census data vacancy rate multiplied by the number of Total SFR connections. When Total Connections is chosen in Table 3.2, vacant single family residential connections are subtracted from Total Connections prior to calculating a population (based on household size) and a single family GPCD.
C64: How to find the data required for Census section
C65: www.census.gov
C66: 1. Select American Community Survey (ACS)
B70: 2. Select Data
C74: 3. Select Data Profiles
C79: 4. Select the Geography Type, state, and place
C82: 5. Select Housing Characteristics
B85: 6. Populate the GPCD Calculator with the numbers in Total housing units, Occupied housing units, Vacant housing units. | C85: 6. Populate the GPCD Calculator with the numbers in Total housing units, Occupied housing units, Vacant housing units.
C89: 7.Populate the GPCD Calculator with the number in Average household size
C95: Group Quarters
C97: In Group Quarters data can be found for the following cities: Alamogordo, Albuqureque, Carlsbad, Clovis, Farmington, Gallup, Hobbs, Las Cruces, Rio Rancho, Roswell, Santa Fe, and South Valley. Follow steps 8-12 to obtain data. For all other cities in group quarters data can be obtained by contact the group quarters that you provide service to. Group quarters populations includes: Prisons, nursing homes, long term care hospitials, off campus college quarters, military quarters, and emergency and transitional shelters.
C99: Transfer results to spreadsheet
C101: END

Sheet Sheet4

Sheet Sheet2

Sheet Sheet3

Sheet Sheet1 (hidden)
B1: $/100 cubic feet (ccf) | C1: $/1000 gallons (US) | D1: $/1000 litres | F1: Conversion table | M1: FROM: TO: | N1: Million gallons (US) | O1: Megalitres (thousand cubic metres) | P1: Acre-feet
A2: Million gallons (US) | B2: =1000000/(F2*100) -> 1336.805561 | C2: 1000 | D2: =1000/F5 -> 3785.4118 | F2: 7.48051945 | G2: gallons / cubic foot | H2: converting FROM volume unit TO pricing UNITS | M2: Million gallons (US) | N2: 1 | O2: =F4 -> 3.7854118 | P2: 3.06888329
A3: Megalitres (thousand cubic metres) | B3: =1000000/F4/(F2*100) -> 353.1466672 | C3: =1000/F4 -> 264.1720512 | D3: 1000 | F3: 43560 | G3: sq feet / acre | M3: Megalitres (thousand cubic metres) | N3: =1/O2 -> 0.2641720512 | O3: 1 | P3: 0.8107131937
A4: Acre-feet | B4: =F3/100 -> 435.6 | C4: =F3*F2/1000 -> 325.8514272 | D4: =F3*F2*F4/1000 -> 1233.481838 | F4: 3.7854118 | G4: litres / gallon | M4: Acre-feet | N4: =325851.427242/1000000 -> 0.3258514272 | O4: 1.233481838 | P4: 1
F5: =1/F4 -> 0.2641720512 | G5: gallons / litre
A7: losses | B7: 1 | C7: million gallons (US) | D7: =MATCH(C7,A2:A4,0) -> 1
E8: =INDEX($B$2:$D$4,MATCH(C7,A2:A4,0),MATCH(C9,B1:D1,0)) -> 1336.805561
A9: cost | B9: 10 | C9: $/100 cubic feet (ccf) | D9: =MATCH(C9,B1:D1,0) -> 1
B11: cost = | C11: =B7*B9*E8 -> 13368.05561 | I11: Multiply By…
G12: million | I12: From | L12: To
G13: m3 | H13: 1 | I13: Acre-feet | J13: = | K13: =H13*INDEX(N2:P4,MATCH(I13,M2:M4,0),MATCH(L13,N1:P1,0)) -> 1.233481838 | L13: Megalitres (thousand cubic metres)
B15: customer cost
B16: $/100 cubic feet (ccf) | C16: $/1000 gallons (US) | D16: $/1000 litres
A17: million gallons (US) | B17: =1000000/(7.48*100) -> 1336.898396 | C17: 1000 | D17: =1000000/CONVERT(1000,"l","gal") -> 3785.411784
A18: thousand cubic metres | B18: =1000000/CONVERT((7.48*100),"gal","l") -> 353.171193 | C18: =1000000/CONVERT(1000,"gal","l") -> 264.1720524 | D18: 1000
A19: acre-feet | B19: =43560/100 -> 435.6 | C19: =43560/(1000/7.48) -> 325.8288 | D19: =F3/(CONVERT(1000,"l","gal")/F2) -> 1233.481833
A22: customer cost | B22: 5 | C22: $/1000 gallons (US) | D22: =MATCH(C22,B16:D16,0) -> 2
E23: =INDEX($B$2:$D$4,MATCH(C24,A2:A4,0),MATCH(C22,B1:D1,0)) -> 1000
A24: marginal production | B24: 5000 | C24: million gallons (US) | D24: =MATCH(C24,A17:A19,0) -> 1
B26: cost = | C26: =(B22*E23)/B24 -> 1
C27: >1 = higher customer cost
C28: <1 = lower customer cost
A31: =IF(ISERROR(1/G60),"",(((G24+G25+G40)*G62)+(G37*G61)*INDEX(Sheet1!B2:D4,MATCH(Instructions!G24,Sheet1!A2:A4,0),MATCH('Reporting Worksheet'!I61:J61,Sheet1!B1:D1,0)))/G60)
B33: (reallosses * real loss cost per unit) + (apparent losses * apparent loss cost per unit * unit conversion factor)
A37: =IF(ISBLANK(Instructions!$G$26),"",IF(Instructions!$G$26="Megalitres (thousand cubic metres)",IF(AND(G55>25,G50*20+G51>3000),(((18*G50)+(0.8*G51)+(25*(G51*G53/1000)))*G55/1000000)*365,"Not valid"),IF(AND(G55>40,G50*32+G51>3000),(((5.41*G50)+(0.15*G51)+(7.5*(G51*G53/5280)))*G55)/1000000*365,"Not Valid")))
A38: IF(AND(G55>40,G50*32+G51>3000),(((5.41*G50)+(0.15*G51)+(7.5*(G51*G53/5280)))*G55)/1000000,"Not Valid")))
A39: Logic:
A40: If volume unit is blank show nothing
A42: If instructions is tcm Then
A43: If pressure > 25 AND length of mains * 20 + # connections > 3000 Then
A44: (((18 * length of mains) + (0.8 * # connections) + (25 * (# service connections * avg len of pipe / 1000))) * pressure) /1000
A45: Otherwise not valid
A47: If instructions is gallons Then
A48: If pressure > 40 AND length of mains * 32 + # connections > 3000 Then
A49: (((5.41 * length of mains) + (0.15 * # connections) + (7.5 * (# service connections * avg len of pipe / 5280))) * pressure) /1000000
A50: Otherwise not valid
A52: If instructions is acre-feet Then
A53: If pressure > 40 AND length of mains * 32 + # connections > 3000 Then
A54: (((5.41 * length of mains) + (0.15 * # connections) + (7.5 * (# service connections * avg len of pipe / 5280))) * pressure) /1000000
A55: Otherwise not valid
